Body,Body Name,Date,TransNo,Amount � (Excl VAT),Supplier name,Description,Expense Area,Expense Type,Expense Code,
http://opendatacommunities.org/id/london-borough-council/sutton,London Borough of Sutton,23/05/2021,10002270,153.99, FACEBK 6D5TV4TAL2,SPLIT - KEEP SUTTON SAFE FACEBOOK ADS (72.12%),Health and Wellbeing,Publicity,A44266,
http://opendatacommunities.org/id/london-borough-council/sutton,London Borough of Sutton,16/05/2021,10002270,196.01, FACEBK VYZLW33AL2,SPLIT - KEEP SUTTON SAFE FACEBOOK ADS (49%),Health and Wellbeing,Publicity,A44266,
http://opendatacommunities.org/id/london-borough-council/sutton,London Borough of Sutton,24/05/2021,10002270,53.82, W M MORRISONS.COM,GROCERIES,Health and Wellbeing,Provisions,A41006,
http://opendatacommunities.org/id/london-borough-council/sutton,London Borough of Sutton,23/05/2021,10002270,8.32, TWINKL LIMITED,TWINKL SUBSCRIPTION,Health and Wellbeing,Equipment And Materials Purchase,A40000,
http://opendatacommunities.org/id/london-borough-council/sutton,London Borough of Sutton,27/04/2021,10002270,9.00, PTS,TOYS & EQUIPMENT,Health and Wellbeing,Equipment And Materials Purchase,A40000,
http://opendatacommunities.org/id/london-borough-council/sutton,London Borough of Sutton,15/05/2021,10002270,4.46, TESCO STORE 3235,GROCERIES,Health and Wellbeing,Provisions,A41006,
http://opendatacommunities.org/id/london-borough-council/sutton,London Borough of Sutton,11/05/2021,10002270,14.10, ASDA SUPERSTORE,GROCERIES,Health and Wellbeing,Provisions,A41006,
http://opendatacommunities.org/id/london-borough-council/sutton,London Borough of Sutton,10/05/2021,10002270,65.90, W M MORRISONS.COM,GROCERIES,Health and Wellbeing,Provisions,A41006,
http://opendatacommunities.org/id/london-borough-council/sutton,London Borough of Sutton,05/05/2021,10002270,3.12, SAINSBURYS SACAT 0052,GROCERIES,Health and Wellbeing,Provisions,A41006,
http://opendatacommunities.org/id/london-borough-council/sutton,London Borough of Sutton,04/05/2021,10002270,6.25, ARGOS LTD,TOYS & EQUIPMENT,Health and Wellbeing,Provisions,A41006,
http://opendatacommunities.org/id/london-borough-council/sutton,London Borough of Sutton,04/05/2021,10002270,19.99, SAINSBURYS 0052,GROCERIES,Health and Wellbeing,Provisions,A41006,
http://opendatacommunities.org/id/london-borough-council/sutton,London Borough of Sutton,23/05/2021,10002270,6.08, TESCO STORE 3235,GROCERIES,Health and Wellbeing,Provisions,A41006,
http://opendatacommunities.org/id/london-borough-council/sutton,London Borough of Sutton,29/04/2021,10002270,460.32, DNH GO DADDY EUROPE GB,Website domain for Engaging Libraries Project,Health and Wellbeing,Equipment And Materials Purchase,A40000,
http://opendatacommunities.org/id/london-borough-council/sutton,London Borough of Sutton,16/05/2021,10002270,203.99, FACEBK VYZLW33AL2,SPLIT - EU SETTLEMENT SCHEME  AND APPLICATIONS FOR RE-START GRANT FACEBOOK ADS (51%),Health and Wellbeing,Publicity,A44266,
http://opendatacommunities.org/id/london-borough-council/sutton,London Borough of Sutton,03/05/2021,10002270,8.32, SPOTIFY P14A6F56E2,MUSIC FOR WEDDINGS,Resources,Subscriptions,A47010,
http://opendatacommunities.org/id/london-borough-council/sutton,London Borough of Sutton,20/05/2021,10002270,11.08, WILKO RETAIL LIMITED,SUPPLY OF TISSUES & ANTI BACTERIA WIPES FOR SUTTON REGISTER OFFICE,Resources,Miscellaneous Expenses,A49000,
http://opendatacommunities.org/id/london-borough-council/sutton,London Borough of Sutton,22/05/2021,10002270,7.50, ANTONIQUE DRY CLEANERS,TABLECLOTH LAUNDRY,Resources,Miscellaneous Expenses,A49000,
http://opendatacommunities.org/id/london-borough-council/sutton,London Borough of Sutton,07/05/2021,10002270,240.00, WWW.LOCAL.GOV.UK,"LGA CONFERENCE BOOKING FOR HELEN BAILEY, CHIEF EXECUTIVE",Resources,Conference Expenses,A43075,
http://opendatacommunities.org/id/london-borough-council/sutton,London Borough of Sutton,17/05/2021,10002270,6.60, MAILCHIMP    MONTHLY,WEB HOSTING,Resources,IT Hardware Purchase,A45005,
http://opendatacommunities.org/id/london-borough-council/sutton,London Borough of Sutton,14/05/2021,10002270,239.91, MAILCHIMP    MONTHLY,WEB HOSTING,Resources,IT Software Purchase,A45040,
http://opendatacommunities.org/id/london-borough-council/sutton,London Borough of Sutton,30/04/2021,10002270,"1,083.33", CS MORRISONS GIFT CARD,MORRISON VOUCHERS TOP UP FOR REQUESTS FOR SOCIAL WORKERS,Resources,Equipment And Materials Purchase,A40000,
http://opendatacommunities.org/id/london-borough-council/sutton,London Borough of Sutton,22/05/2021,10002270,240.00, DOCUSIGN INC. GBP,ANNUAL RENEWAL DOCUSIGN PAYMENT,Resources,Subscriptions,A47010,
http://opendatacommunities.org/id/london-borough-council/sutton,London Borough of Sutton,19/05/2021,10002270,190.00, HS PRINTING AND COMPUT,MAYOR'S CHARITY BANNERS 2021-2022,Resources,Equipment And Materials Purchase,A40000,
http://opendatacommunities.org/id/london-borough-council/sutton,London Borough of Sutton,23/05/2021,10002270,59.54, FACEBK 6D5TV4TAL2,SPLIT - RESTART GRANT AND EU SETTLEMENT SCHEME FACEBOOK ADS (27.88%),Resources,Publicity,A44266,
http://opendatacommunities.org/id/london-borough-council/sutton,London Borough of Sutton,21/05/2021,10002270,192.95, MAILCHIMP,MAILCHIMP SUBSCRIPTION,Resources,Communication Support,H10018,
http://opendatacommunities.org/id/london-borough-council/sutton,London Borough of Sutton,24/05/2021,10002270,98.95, ARGOS LTD,CL&G,Resources,"Grants, Contributions & Donations",A47005,
http://opendatacommunities.org/id/london-borough-council/sutton,London Borough of Sutton,24/05/2021,10002270,735.00, CURRYS ONLINE,CL&G,Resources,"Grants, Contributions & Donations",A47005,
http://opendatacommunities.org/id/london-borough-council/sutton,London Borough of Sutton,18/05/2021,10002270,454.00, CURRYS ONLINE,CL&G,Resources,"Grants, Contributions & Donations",A47005,
http://opendatacommunities.org/id/london-borough-council/sutton,London Borough of Sutton,18/05/2021,10002270,466.94, ARGOS LTD,CL&G,Resources,"Grants, Contributions & Donations",A47005,
http://opendatacommunities.org/id/london-borough-council/sutton,London Borough of Sutton,18/05/2021,10002270,761.93, ARGOS LTD,CL&G,Resources,"Grants, Contributions & Donations",A47005,
http://opendatacommunities.org/id/london-borough-council/sutton,London Borough of Sutton,17/05/2021,10002270,199.99, ARGOS LTD,CL&G,Resources,"Grants, Contributions & Donations",A47005,
http://opendatacommunities.org/id/london-borough-council/sutton,London Borough of Sutton,13/05/2021,10002270,226.95, ARGOS LTD,CL&G,Resources,"Grants, Contributions & Donations",A47005,
http://opendatacommunities.org/id/london-borough-council/sutton,London Borough of Sutton,12/05/2021,10002270,434.00, CURRYS ONLINE,CL&G,Resources,"Grants, Contributions & Donations",A47005,
http://opendatacommunities.org/id/london-borough-council/sutton,London Borough of Sutton,12/05/2021,10002270,534.98, ARGOS LTD,CL&G,Resources,"Grants, Contributions & Donations",A47005,
http://opendatacommunities.org/id/london-borough-council/sutton,London Borough of Sutton,12/05/2021,10002270,-334.99, ARGOS LTD,CL&G,Resources,"Grants, Contributions & Donations",A47005,
http://opendatacommunities.org/id/london-borough-council/sutton,London Borough of Sutton,11/05/2021,10002270,538.99, CURRYS ONLINE,CL&G,Resources,"Grants, Contributions & Donations",A47005,
http://opendatacommunities.org/id/london-borough-council/sutton,London Borough of Sutton,11/05/2021,10002270,304.00, CURRYS ONLINE,CL&G,Resources,"Grants, Contributions & Donations",A47005,
http://opendatacommunities.org/id/london-borough-council/sutton,London Borough of Sutton,11/05/2021,10002270,-264.99, ARGOS LTD,CL&G,Resources,"Grants, Contributions & Donations",A47005,
http://opendatacommunities.org/id/london-borough-council/sutton,London Borough of Sutton,07/05/2021,10002270,199.99, ARGOS LTD,CL&G,Resources,"Grants, Contributions & Donations",A47005,
http://opendatacommunities.org/id/london-borough-council/sutton,London Borough of Sutton,07/05/2021,10002270,364.99, ARGOS LTD,CL&G,Resources,"Grants, Contributions & Donations",A47005,
http://opendatacommunities.org/id/london-borough-council/sutton,London Borough of Sutton,07/05/2021,10002270,199.99, ARGOS LTD,CL&G,Resources,"Grants, Contributions & Donations",A47005,
http://opendatacommunities.org/id/london-borough-council/sutton,London Borough of Sutton,07/05/2021,10002270,971.93, ARGOS LTD,CL&G,Resources,"Grants, Contributions & Donations",A47005,
http://opendatacommunities.org/id/london-borough-council/sutton,London Borough of Sutton,07/05/2021,10002270,63.95, ARGOS LTD,CL&G,Resources,"Grants, Contributions & Donations",A47005,
http://opendatacommunities.org/id/london-borough-council/sutton,London Borough of Sutton,05/05/2021,10002270,289.00, CURRYS ONLINE,CL&G,Resources,"Grants, Contributions & Donations",A47005,
http://opendatacommunities.org/id/london-borough-council/sutton,London Borough of Sutton,05/05/2021,10002270,306.95, ARGOS LTD,CL&G,Resources,"Grants, Contributions & Donations",A47005,
http://opendatacommunities.org/id/london-borough-council/sutton,London Borough of Sutton,05/05/2021,10002270,103.95, ARGOS LTD,CL&G,Resources,"Grants, Contributions & Donations",A47005,
http://opendatacommunities.org/id/london-borough-council/sutton,London Borough of Sutton,05/05/2021,10002270,573.99, CURRYS ONLINE,CL&G,Resources,"Grants, Contributions & Donations",A47005,
http://opendatacommunities.org/id/london-borough-council/sutton,London Borough of Sutton,04/05/2021,10002270,299.00, CURRYS ONLINE,CL&G,Resources,"Grants, Contributions & Donations",A47005,
http://opendatacommunities.org/id/london-borough-council/sutton,London Borough of Sutton,04/05/2021,10002270,226.95, ARGOS LTD,CL&G,Resources,"Grants, Contributions & Donations",A47005,
http://opendatacommunities.org/id/london-borough-council/sutton,London Borough of Sutton,30/04/2021,10002270,103.95, ARGOS LTD,CL&G,Resources,"Grants, Contributions & Donations",A47005,
http://opendatacommunities.org/id/london-borough-council/sutton,London Borough of Sutton,30/04/2021,10002270,284.00, CURRYS ONLINE,CL&G,Resources,"Grants, Contributions & Donations",A47005,
http://opendatacommunities.org/id/london-borough-council/sutton,London Borough of Sutton,30/04/2021,10002270,199.99, ARGOS LTD,CL&G,Resources,"Grants, Contributions & Donations",A47005,
http://opendatacommunities.org/id/london-borough-council/sutton,London Borough of Sutton,29/04/2021,10002270,284.00, CURRYS ONLINE,CL&G,Resources,"Grants, Contributions & Donations",A47005,
http://opendatacommunities.org/id/london-borough-council/sutton,London Borough of Sutton,29/04/2021,10002270,-568.20, ARGOS LTD,CL&G,Resources,"Grants, Contributions & Donations",A47005,
http://opendatacommunities.org/id/london-borough-council/sutton,London Borough of Sutton,28/04/2021,10002270,103.95, ARGOS LTD,CL&G,Resources,"Grants, Contributions & Donations",A47005,
http://opendatacommunities.org/id/london-borough-council/sutton,London Borough of Sutton,28/04/2021,10002270,681.95, ARGOS LTD,CL&G,Resources,"Grants, Contributions & Donations",A47005,
http://opendatacommunities.org/id/london-borough-council/sutton,London Borough of Sutton,28/04/2021,10002270,341.95, ARGOS LTD,CL&G,Resources,"Grants, Contributions & Donations",A47005,
http://opendatacommunities.org/id/london-borough-council/sutton,London Borough of Sutton,27/04/2021,10002270,334.00, CURRYS ONLINE,CL&G,Resources,"Grants, Contributions & Donations",A47005,
http://opendatacommunities.org/id/london-borough-council/sutton,London Borough of Sutton,27/04/2021,10002270,276.95, ARGOS LTD,CL&G,Resources,"Grants, Contributions & Donations",A47005,
http://opendatacommunities.org/id/london-borough-council/sutton,London Borough of Sutton,23/04/2021,10002270,-274.00, CURRYS ONLINE,CL&G,Resources,"Grants, Contributions & Donations",A47005,
http://opendatacommunities.org/id/london-borough-council/sutton,London Borough of Sutton,17/05/2021,10002270,62.00, LBSUTTON,SUTTON ONLINE PAYMENTS LICENSING ISSUE - TEST PAYMENT AND REFUND.,Resources,Miscellaneous Expenses,A49000,
http://opendatacommunities.org/id/london-borough-council/sutton,London Borough of Sutton,17/05/2021,10002270,-120.00, LBSUTTON,SUTTON ONLINE PAYMENTS LICENSING ISSUE - TEST PAYMENT AND REFUND.,Resources,Miscellaneous Expenses,A49000,
http://opendatacommunities.org/id/london-borough-council/sutton,London Borough of Sutton,17/05/2021,10002270,-62.00, LBSUTTON,SUTTON ONLINE PAYMENTS LICENSING ISSUE - TEST PAYMENT AND REFUND.,Resources,Miscellaneous Expenses,A49000,
http://opendatacommunities.org/id/london-borough-council/sutton,London Borough of Sutton,17/05/2021,10002270,120.00, LBSUTTON,SUTTON ONLINE PAYMENTS LICENSING ISSUE - TEST PAYMENT AND REFUND.,Resources,Miscellaneous Expenses,A49000,
http://opendatacommunities.org/id/london-borough-council/sutton,London Borough of Sutton,11/05/2021,10002270,1.50, WWW.GOV.UK,PROBATE/WILL FOR JEAN PEARSON'S,Resources,Legal Services,A44025,
http://opendatacommunities.org/id/london-borough-council/sutton,London Borough of Sutton,24/05/2021,10002270,20.28, AMZNMKTPLACE AMAZON.CO,PURCHASE OF DISPLAY PORT LEADS FOR ADDITIONAL MONITORS FOR NEW STARTERS IN PARKING PLUS DELIVERY,Environment Housing and Neighbourhoods,Equipment And Materials Purchase,A40000,
http://opendatacommunities.org/id/london-borough-council/sutton,London Borough of Sutton,11/05/2021,10002270,13.00, WALLINGTON CARS AND CO,"TAXI FOR STRATEGIC DIRECTOR DEVELOPMENT, GROWTH AND REGENERATION",Development Growth and Regeneration,Miscellaneous Expenses,A49000,
http://opendatacommunities.org/id/london-borough-council/sutton,London Borough of Sutton,20/05/2021,10002270,57.00, TEAM SPORT KARTING,TEAM SPORT GO-KARTING TICKETS FOR YOUNG PERSON,Peoples Services,Miscellaneous Expenses,A49000,
http://opendatacommunities.org/id/london-borough-council/sutton,London Borough of Sutton,17/05/2021,10002270,123.33, CHESSINGTON ADVENTURES,CHESSINGTON WORLD OF ADVENTURES TICKETS.,Peoples Services,Client Care/Assistance,A61011,
http://opendatacommunities.org/id/london-borough-council/sutton,London Borough of Sutton,17/05/2021,10002270,291.67, BRIGHTONGETAWAYS.COM,HOTEL EXTENTSION FOR LEAVING CARE TEAM CLIENT.,Peoples Services,Equipment And Materials Purchase,A40000,
http://opendatacommunities.org/id/london-borough-council/sutton,London Borough of Sutton,14/05/2021,10002270,37.17, SEA LIFE BRIGHTON,BRIGHTON SEA LIFE TICKETS FOR LEAVING CARE TEAM.,Peoples Services,Equipment And Materials Purchase,A40000,
http://opendatacommunities.org/id/london-borough-council/sutton,London Borough of Sutton,19/05/2021,10002270,25.00, EXPRESS CARS,KP TAXI,Peoples Services,Equipment And Materials Purchase,A40000,
http://opendatacommunities.org/id/london-borough-council/sutton,London Borough of Sutton,27/04/2021,10002270,9.19, COX PIPPIN CAFE,RA ACTIVITY,Peoples Services,Equipment And Materials Purchase,A40000,
http://opendatacommunities.org/id/london-borough-council/sutton,London Borough of Sutton,13/05/2021,10002270,-12.85, T&M B2C ECOMM,REFUND FROM 31/03/2021- PART REFUND,Peoples Services,Equipment And Materials Purchase,A40000,
http://opendatacommunities.org/id/london-borough-council/sutton,London Borough of Sutton,04/05/2021,10002270,11.00, LBS REGISTRARS,CP,Peoples Services,Equipment And Materials Purchase,A40000,
http://opendatacommunities.org/id/london-borough-council/sutton,London Borough of Sutton,18/05/2021,10002270,21.67, PRIMARK,EU EMERGENCY WEEKEND,Peoples Services,Other Supplies & Services,A44291,
http://opendatacommunities.org/id/london-borough-council/sutton,London Borough of Sutton,18/05/2021,10002270,10.78, MCDONALDS,EU EMERGENCY WEEKEND,Peoples Services,Other Supplies & Services,A44291,
http://opendatacommunities.org/id/london-borough-council/sutton,London Borough of Sutton,18/05/2021,10002270,3.12, ASDA SUPERSTORE,EU EMERGENCY WEEKEND,Peoples Services,Other Supplies & Services,A44291,
http://opendatacommunities.org/id/london-borough-council/sutton,London Borough of Sutton,17/05/2021,10002270,25.70, DELIVEROO,EU EMERGENCY WEEKEND,Peoples Services,Other Supplies & Services,A44291,
http://opendatacommunities.org/id/london-borough-council/sutton,London Borough of Sutton,17/05/2021,10002270,1.91, PATCHAM SVS STN,EU EMERGENCY WEEKEND,Peoples Services,Other Supplies & Services,A44291,
http://opendatacommunities.org/id/london-borough-council/sutton,London Borough of Sutton,17/05/2021,10002270,0.24, ASDA SUPERSTORE,EU EMERGENCY WEEKEND,Peoples Services,Other Supplies & Services,A44291,
http://opendatacommunities.org/id/london-borough-council/sutton,London Borough of Sutton,17/05/2021,10002270,12.93, ASDA SUPERSTORE,EU EMERGENCY WEEKEND,Peoples Services,Other Supplies & Services,A44291,
http://opendatacommunities.org/id/london-borough-council/sutton,London Borough of Sutton,18/05/2021,10002270,2.33, BRIGHTON MARINE PALACE,EU EMERGENCY WEEKEND,Peoples Services,Other Supplies & Services,A44291,
http://opendatacommunities.org/id/london-borough-council/sutton,London Borough of Sutton,18/05/2021,10002270,6.17, BRIGHTON & HOVE CITY C,EU EMERGENCY WEEKEND,Peoples Services,Other Supplies & Services,A44291,
http://opendatacommunities.org/id/london-borough-council/sutton,London Borough of Sutton,18/05/2021,10002270,3.75, AMAS LTD,EU EMERGENCY WEEKEND,Peoples Services,Other Supplies & Services,A44291,
http://opendatacommunities.org/id/london-borough-council/sutton,London Borough of Sutton,18/05/2021,10002270,2.08, CLAIRE'S ACCESSORIES,EU EMERGENCY WEEKEND,Peoples Services,Other Supplies & Services,A44291,
http://opendatacommunities.org/id/london-borough-council/sutton,London Borough of Sutton,18/05/2021,10002270,4.16, SUPERDRUG STORES PLC,EU EMERGENCY WEEKEND,Peoples Services,Other Supplies & Services,A44291,
http://opendatacommunities.org/id/london-borough-council/sutton,London Borough of Sutton,18/05/2021,10002270,7.25, BUBBLE CITEA,EU EMERGENCY WEEKEND,Peoples Services,Other Supplies & Services,A44291,
http://opendatacommunities.org/id/london-borough-council/sutton,London Borough of Sutton,18/05/2021,10002270,26.25, BUILD-A-BEAR WORKSHOP,EU EMERGENCY WEEKEND,Peoples Services,Other Supplies & Services,A44291,
http://opendatacommunities.org/id/london-borough-council/sutton,London Borough of Sutton,14/05/2021,10002270,416.67, AIRBNB   HMRE43BH4H,AIR B&B  FOR THORNTON ROAD CHILD,Peoples Services,Miscellaneous Expenses,A49000,
http://opendatacommunities.org/id/london-borough-council/sutton,London Borough of Sutton,30/04/2021,10002270,-15.00, DECATHLON UK LIMITED,REFUND DECATHLON FOR YOUNG PERSON WITHIN BLUE CENTRAL LOCALITY,Peoples Services,Miscellaneous Expenses,A49000,
http://opendatacommunities.org/id/london-borough-council/sutton,London Borough of Sutton,24/05/2021,10002270,159.00, TVLICENSING.CO.UK,157.50 A49000 G03040 TV LICENCE BUCKINGHAM WAY.PDF,Peoples Services,Miscellaneous Expenses,A49000,
http://opendatacommunities.org/id/london-borough-council/sutton,London Borough of Sutton,24/05/2021,10002270,100.00, UK BEAUTY SCHOOLS,MB COURSE,Peoples Services,Education Allowance,A60008,
http://opendatacommunities.org/id/london-borough-council/sutton,London Borough of Sutton,12/05/2021,10002270,66.67, HOTEL ON BOOKING.COM,HOTEL BOOKING FOR LEAVING CARE TEAM,Peoples Services,Client Care/Assistance,A61011,
http://opendatacommunities.org/id/london-borough-council/sutton,London Borough of Sutton,04/05/2021,10002270,-96.99, ARGOS LTD,ARGOS - ELECTRICAL GOODS FOR CLIENT,Peoples Services,Client Care/Assistance,A61011,
http://opendatacommunities.org/id/london-borough-council/sutton,London Borough of Sutton,27/04/2021,10002270,249.99, CURRYS ONLINE,CURRYS - ELECTRICAL GOODS FOR CLIENT,Peoples Services,Client Care/Assistance,A61011,
http://opendatacommunities.org/id/london-borough-council/sutton,London Borough of Sutton,27/04/2021,10002270,200.99, ARGOS LTD,ARGOS - ELECTRICAL GOOD FOR CLIENT,Peoples Services,Client Care/Assistance,A61011,
http://opendatacommunities.org/id/london-borough-council/sutton,London Borough of Sutton,26/04/2021,10002270,202.00, WILKO.COM,DOUBLE BED & TV UNIT,Peoples Services,Client Care/Assistance,A61011,
http://opendatacommunities.org/id/london-borough-council/sutton,London Borough of Sutton,24/05/2021,10002270,132.95, ARGOS LTD,ARGOS - HEADBOARD FOR CLIENT,Peoples Services,Set Up Costs - Children Leaving Care,A61021,
http://opendatacommunities.org/id/london-borough-council/sutton,London Borough of Sutton,24/05/2021,10002270,280.00, ARGOS LTD,ARGOS - ELECTRICAL GOOD FOR CLIENT,Peoples Services,Set Up Costs - Children Leaving Care,A61021,
http://opendatacommunities.org/id/london-borough-council/sutton,London Borough of Sutton,18/05/2021,10002270,105.82, WF  WAYFAIR3549476104,WARDROBE FOR LEAVING CARE TEAM.,Peoples Services,Set Up Costs - Children Leaving Care,A61021,
http://opendatacommunities.org/id/london-borough-council/sutton,London Borough of Sutton,18/05/2021,10002270,374.99, HOME DONE LIMITED,SOFA FOR LEAVING CARE TEAM.,Peoples Services,Set Up Costs - Children Leaving Care,A61021,
http://opendatacommunities.org/id/london-borough-council/sutton,London Borough of Sutton,18/05/2021,10002270,199.99, ARGOS LTD,BUSH WASHING MACHINE FROM ARGOS FOR LEAVING CARE TEAM,Peoples Services,Set Up Costs - Children Leaving Care,A61021,
http://opendatacommunities.org/id/london-borough-council/sutton,London Borough of Sutton,18/05/2021,10002270,249.99, COMFORT NIGHT SLEEP,COLORADO CHESTERFIELD SLEIGH BED FOR THE LEAVING CARE TEAM.,Peoples Services,Set Up Costs - Children Leaving Care,A61021,
http://opendatacommunities.org/id/london-borough-council/sutton,London Borough of Sutton,19/05/2021,10002270,605.79, ARGOS LTD,ARGOS ITEMS FOR THE LEAVING CARE TEAM.,Peoples Services,Set Up Costs - Children Leaving Care,A61021,
http://opendatacommunities.org/id/london-borough-council/sutton,London Borough of Sutton,27/04/2021,10002270,39.17, ARGOS LTD,RM SET UP,Peoples Services,Set Up Costs - Children Leaving Care,A61021,
http://opendatacommunities.org/id/london-borough-council/sutton,London Borough of Sutton,04/05/2021,10002270,159.00, TVLICENSING.CO.UK,RM SET UP,Peoples Services,Set Up Costs - Children Leaving Care,A61021,
http://opendatacommunities.org/id/london-borough-council/sutton,London Borough of Sutton,27/04/2021,10002270,194.12, ARGOS LTD,RM SET UP,Peoples Services,Set Up Costs - Children Leaving Care,A61021,
http://opendatacommunities.org/id/london-borough-council/sutton,London Borough of Sutton,27/04/2021,10002270,12.49, BRITISH HEART FOUNDATI,RM SET UP,Peoples Services,Set Up Costs - Children Leaving Care,A61021,
http://opendatacommunities.org/id/london-borough-council/sutton,London Borough of Sutton,12/05/2021,10002270,660.00, SUTTON APPLIANCES,SUTTON APPLIANCES FOR LEAVING CARE SERVICES,Peoples Services,Set Up Costs - Children Leaving Care,A61021,
http://opendatacommunities.org/id/london-borough-council/sutton,London Borough of Sutton,14/05/2021,10002270,58.33, ARGOS LTD,ARGOS ITEMS FOR THE LEAVING CARE TEAM,Peoples Services,Set Up Costs - Children Leaving Care,A61021,
http://opendatacommunities.org/id/london-borough-council/sutton,London Borough of Sutton,25/05/2021,10002270,252.95, ARGOS LTD,SET UP,Peoples Services,Set Up Costs - Children Leaving Care,A61021,
http://opendatacommunities.org/id/london-borough-council/sutton,London Borough of Sutton,18/05/2021,10002270,400.00, BRITISH HEART FOUNDATI,JD,Peoples Services,Set Up Costs - Children Leaving Care,A61021,
http://opendatacommunities.org/id/london-borough-council/sutton,London Borough of Sutton,19/05/2021,10002270,159.96, ARGOS LTD,COFFEE TABLE AND DELIVERY FROM ARGOS FOR THE LEAVING CARE TEAM,Peoples Services,Set Up Costs - Children Leaving Care,A61021,
http://opendatacommunities.org/id/london-borough-council/sutton,London Borough of Sutton,19/05/2021,10002270,315.83, CURRYS ONLINE,TV AND DELIVERY FROM CURRYS FOR THE LEAVING CARE TEAM,Peoples Services,Set Up Costs - Children Leaving Care,A61021,
http://opendatacommunities.org/id/london-borough-council/sutton,London Borough of Sutton,19/05/2021,10002270,41.67, ARGOS LTD,RUG FROM ARGOS FOR LEAVING CARE TEAM,Peoples Services,Set Up Costs - Children Leaving Care,A61021,
http://opendatacommunities.org/id/london-borough-council/sutton,London Borough of Sutton,19/05/2021,10002270,171.67, ARGOS LTD,ARGOS ITEMS FOR LEAVING CARE TEAM.,Peoples Services,Set Up Costs - Children Leaving Care,A61021,
http://opendatacommunities.org/id/london-borough-council/sutton,London Borough of Sutton,29/04/2021,10002270,110.41, TRAVELODGE,TRAVELODGE FOR CLIENT WITHIN LEAVING CARE SERVICES,Peoples Services,Accommodation - Bed and Breakfast,A62000,
http://opendatacommunities.org/id/london-borough-council/sutton,London Borough of Sutton,27/04/2021,10002270,154.17, BRITISH HEART FOUNDATI,RM SET UP,Peoples Services,Housing and Support - Women at risk of Domestic Violence Services,A62021,
http://opendatacommunities.org/id/london-borough-council/sutton,London Borough of Sutton,13/05/2021,10002270,98.87, LAKESIDE KARTING,LAKESIDE GO KART TICKETS FOR LCS SUPPORT TEAM,Peoples Services,Miscellaneous Expenses,A49000,
http://opendatacommunities.org/id/london-borough-council/sutton,London Borough of Sutton,25/05/2021,10002270,-49.85, MINICABIT,MINI CABIT FOR LCS SUPPORT TEAM,Peoples Services,C.C.A Travel & Subsistance,A61010,
http://opendatacommunities.org/id/london-borough-council/sutton,London Borough of Sutton,20/05/2021,10002270,49.85, MINICABIT,MINICABIT FOR CLIENT,Peoples Services,C.C.A Travel & Subsistance,A61010,
http://opendatacommunities.org/id/london-borough-council/sutton,London Borough of Sutton,20/05/2021,10002270,8.33, TFL OYST PHOTOCARD,OYSTER CARD FOR LEAVING CARE TEAM,Peoples Services,Equipment And Materials Purchase,A40000,
http://opendatacommunities.org/id/london-borough-council/sutton,London Borough of Sutton,24/05/2021,10002270,45.62, ASDA GROCERIES ONLINE,ASDA GROCERIES FOR LEAVING CARE TEAM,Peoples Services,Equipment And Materials Purchase,A40000,
http://opendatacommunities.org/id/london-borough-council/sutton,London Borough of Sutton,22/05/2021,10002270,15.80, AMAZON.CO.UK 2T9D23LW4,"SPLIT - LENOR FABRIC CONDITIONER, WASHING LIQUID LAUNDRY, SPRING AWAKENING SCENT, 332 WASHES (4 X 3 LITRE) (100%)",Peoples Services,Equipment And Materials Purchase,A40000,
http://opendatacommunities.org/id/london-borough-council/sutton,London Borough of Sutton,06/05/2021,10002270,19.99, AMZNMKTPLACE AMAZON.CO,"SPLIT - AMAZON BASICS MULTIPURPOSE COPY PAPER A4 80GSM, 5X500 SHEETS, WHITE (100%)",Peoples Services,Equipment And Materials Purchase,A40000,
http://opendatacommunities.org/id/london-borough-council/sutton,London Borough of Sutton,06/05/2021,10002270,179.21, AMAZON.CO.UK MK4RC3GK4,"SPLIT - RING FLOODLIGHT CAM BY AMAZON | HD SECURITY CAMERA WITH BUILT-IN FLOODLIGHTS, TWO-WAY TALK AND SIREN ALARM | WITH 30-DAY FREE TRIAL OF RING PROTECT PL (99.42%)",Peoples Services,Equipment And Materials Purchase,A40000,
http://opendatacommunities.org/id/london-borough-council/sutton,London Borough of Sutton,06/05/2021,10002270,1.04, AMAZON.CO.UK MK4RC3GK4,BALANCING ENTRY AMOUNT (0.58%),Peoples Services,Equipment And Materials Purchase,A40000,
http://opendatacommunities.org/id/london-borough-council/sutton,London Borough of Sutton,03/05/2021,10002270,54.55, ASDA GROCERIES ONLINE,ASDA GROCERIES FOR YOUNG PERSON - THORNTON ROAD,Peoples Services,Equipment And Materials Purchase,A40000,
http://opendatacommunities.org/id/london-borough-council/sutton,London Borough of Sutton,10/05/2021,10002270,53.46, ASDA GROCERIES ONLINE,ASDA GROCERIES FOR THORNTON ROAD,Peoples Services,Equipment And Materials Purchase,A40000,
http://opendatacommunities.org/id/london-borough-council/sutton,London Borough of Sutton,10/05/2021,10002270,-5.56, ASDA GROCERIES ONLINE,ASDA REFUND FOR THORNTON ROAD,Peoples Services,Equipment And Materials Purchase,A40000,
http://opendatacommunities.org/id/london-borough-council/sutton,London Borough of Sutton,09/05/2021,10002270,6.33, AMZNMKTPLACE AMAZON.CO,SPLIT - CELLOTAPE 8 CLEAR TRANSPARENT ROLLS 18MM X 33M | TAPE DISPENSER INCLUDED | IDEAL FOR GIFT WRAP CHRISTMAS BIRTHDAY HOME OR OFFICE | HIGH QUALITY CLEAR (100%),Peoples Services,Equipment And Materials Purchase,A40000,
http://opendatacommunities.org/id/london-borough-council/sutton,London Borough of Sutton,09/05/2021,10002270,4.97, AMZNMKTPLACE AMAZON.CO,"SPLIT - BRILLO PADS 2 X 5 PACK SOAP PADS. IDEAL FOR CLEANING POTS PANS BARBECUES, GRILLS, OVENS (6.76%)",Peoples Services,Equipment And Materials Purchase,A40000,
http://opendatacommunities.org/id/london-borough-council/sutton,London Borough of Sutton,09/05/2021,10002270,2.88, AMZNMKTPLACE AMAZON.CO,"SPLIT - TESA 59817-00000-00 MINI ROLLER CORRECTION ECOLOGO - 2 PACK MULTICOLOURED SMALL ERGONOMIC WHITE OUT TAPE, TAPE SIZE 6 M X 5 MM (3.92%)",Peoples Services,Equipment And Materials Purchase,A40000,
http://opendatacommunities.org/id/london-borough-council/sutton,London Borough of Sutton,09/05/2021,10002270,29.97, AMZNMKTPLACE AMAZON.CO,"SPLIT - WIRELESS MOUSE FOR LAPTOP SILENT CORDLESS USB MOUSE WIRELESS OPTICAL COMPUTER MOUSE, 6 BUTTONS, BATTERY INCLUDED,1600DPI WITH 3 ADJUSTABLE LEVELS FOR (40.74%)",Peoples Services,Equipment And Materials Purchase,A40000,
http://opendatacommunities.org/id/london-borough-council/sutton,London Borough of Sutton,09/05/2021,10002270,32.99, AMZNMKTPLACE AMAZON.CO,"SPLIT - DOQAUS BLUETOOTH HEADPHONES OVER EAR, [52 HRS PLAYTIME] WIRELESS HEADPHONES, 3 EQ MODES, FOLDABLE HI-FI STEREO BASS HEADPHONES, SOFT MEMORY PROTEIN EA (44.85%)",Peoples Services,Equipment And Materials Purchase,A40000,
http://opendatacommunities.org/id/london-borough-council/sutton,London Borough of Sutton,09/05/2021,10002270,2.75, AMZNMKTPLACE AMAZON.CO,"SPLIT - PRITT GLUE STICK, SAFE & CHILD-FRIENDLY CRAFT GLUE FOR ARTS & CRAFTS ACTIVITIES, STRONG-HOLD ADHESIVE FOR SCHOOL & OFFICE SUPPLIES, 3X22 G PRITT STICK (3.73%)",Peoples Services,Equipment And Materials Purchase,A40000,
http://opendatacommunities.org/id/london-borough-council/sutton,London Borough of Sutton,12/05/2021,10002270,23.43, AMZNMKTPLACE,SPLIT - NUTRITION WALLCHART BY LIZ COOK (2000-05-31) (90.99%),Peoples Services,Equipment And Materials Purchase,A40000,
http://opendatacommunities.org/id/london-borough-council/sutton,London Borough of Sutton,12/05/2021,10002270,2.32, AMZNMKTPLACE,BALANCING ENTRY AMOUNT (9.01%),Peoples Services,Equipment And Materials Purchase,A40000,
http://opendatacommunities.org/id/london-borough-council/sutton,London Borough of Sutton,14/05/2021,10002270,11.47, AMZNMKTPLACE AMAZON.CO,SPLIT - STELLA GARBAGE BAG BIN BAGS LINERS - 120 PCS - ECO-FRIENDLY AND RECYCLABLE - MADE FROM WASTE PLASTIC - ULTRA-STRONG & FLEXIBLE TRASH BAGS - COLOUR WHI (100%),Peoples Services,Equipment And Materials Purchase,A40000,
http://opendatacommunities.org/id/london-borough-council/sutton,London Borough of Sutton,14/05/2021,10002270,14.49, AMZNMKTPLACE AMAZON.CO,SPLIT - CAREX MOISTURE PLUS ANTI-BACTERIAL HANDWASH 250ML X 12 (100%),Peoples Services,Equipment And Materials Purchase,A40000,
http://opendatacommunities.org/id/london-borough-council/sutton,London Borough of Sutton,14/05/2021,10002270,11.90, AMZNMKTPLACE AMAZON.CO,"SPLIT - DETTOL ANTIBACTERIAL BULK SURFACE CLEANING SPRAY, 750 ML, PACK OF 6 (PACKAGING MAY VARY) (55.89%)",Peoples Services,Equipment And Materials Purchase,A40000,
http://opendatacommunities.org/id/london-borough-council/sutton,London Borough of Sutton,14/05/2021,10002270,9.39, AMZNMKTPLACE AMAZON.CO,SPLIT - MR MUSCLE SINK AND DRAIN GEL 100% EXTRA FREE 2X1L BOTTLES (44.11%),Peoples Services,Equipment And Materials Purchase,A40000,
http://opendatacommunities.org/id/london-borough-council/sutton,London Borough of Sutton,14/05/2021,10002270,18.95, AMZNMKTPLACE AMAZON.CO,SPLIT - 72 TOILET ROLLS QUILTED TISSUE 2 PLY TOILET PAPER EXTRA SOFT PREMIUM QUALITY (2PLY ROLLS) (100%),Peoples Services,Equipment And Materials Purchase,A40000,
http://opendatacommunities.org/id/london-borough-council/sutton,London Borough of Sutton,14/05/2021,10002270,16.95, AMAZON.CO.UK MK4QE2KU4,"SPLIT - AMAZON BRAND - PRESTO! JUMBO KITCHEN ROLLS, 12 PACK (12 X 80 3-PLY-SHEETS) (100%)",Peoples Services,Equipment And Materials Purchase,A40000,
http://opendatacommunities.org/id/london-borough-council/sutton,London Borough of Sutton,11/05/2021,10002270,5.00, ASDA STORES 7134,THORNTON ROAD ASDA REFUND FOR YOUNG PERSON,Peoples Services,Equipment And Materials Purchase,A40000,
http://opendatacommunities.org/id/london-borough-council/sutton,London Borough of Sutton,29/04/2021,10002270,24.54, AMAZON.CO.UK MK03A6LO4,"SPLIT - ALL-NEW RING CHIME, WHITE (18.63%)",Peoples Services,Equipment And Materials Purchase,A40000,
http://opendatacommunities.org/id/london-borough-council/sutton,London Borough of Sutton,29/04/2021,10002270,74.88, AMAZON.CO.UK MK03A6LO4,"SPLIT - RING VIDEO DOORBELL BY AMAZON| 1080P HD VIDEO, ADVANCED MOTION DETECTION, AND EASY INSTALLATION (2ND GEN) | WITH 30-DAY FREE TRIAL OF RING PROTECT PLA (56.84%)",Peoples Services,Equipment And Materials Purchase,A40000,
http://opendatacommunities.org/id/london-borough-council/sutton,London Borough of Sutton,29/04/2021,10002270,29.21, AMAZON.CO.UK MK03A6LO4,"SPLIT - ALL-NEW RING CHIME, WHITE (22.17%)",Peoples Services,Equipment And Materials Purchase,A40000,
http://opendatacommunities.org/id/london-borough-council/sutton,London Borough of Sutton,29/04/2021,10002270,3.11, AMAZON.CO.UK MK03A6LO4,BALANCING ENTRY AMOUNT (2.36%),Peoples Services,Equipment And Materials Purchase,A40000,
http://opendatacommunities.org/id/london-borough-council/sutton,London Borough of Sutton,28/04/2021,10002270,8.65, AMZNMKTPLACE,SPLIT - OVEN PRIDE COMPLETE OVEN CLEANING KIT 500ML INCLUDES BAG FOR CLEANING OVEN RACKS (100%),Peoples Services,Equipment And Materials Purchase,A40000,
http://opendatacommunities.org/id/london-borough-council/sutton,London Borough of Sutton,26/04/2021,10002270,51.01, ASDA GROCERIES ONLINE,ASDA THORNTON ROAD GROCERIES FOR YOUNG PERSON,Peoples Services,Equipment And Materials Purchase,A40000,
http://opendatacommunities.org/id/london-borough-council/sutton,London Borough of Sutton,26/04/2021,10002270,-1.68, ASDA GROCERIES ONLINE,REFUND ASDA FOR CLIENT FROM LEAVING CARE TEAM,Peoples Services,Equipment And Materials Purchase,A40000,
http://opendatacommunities.org/id/london-borough-council/sutton,London Borough of Sutton,18/05/2021,10002270,19.06, AMAZON.CO.UK MK5JB7WU4,"SPLIT - FAIRY NON-BIO PODS, WASHING LIQUID LAUNDRY DETERGENT TABLETS/CAPSULES, 108 WASHES (54 X 2) (100%)",Peoples Services,Equipment And Materials Purchase,A40000,
http://opendatacommunities.org/id/london-borough-council/sutton,London Borough of Sutton,17/05/2021,10002270,64.27, ASDA GROCERIES ONLINE,ASDA GROCERIES FOR LEAVING CARE TEAM / THORNTON ROAD,Peoples Services,Equipment And Materials Purchase,A40000,
http://opendatacommunities.org/id/london-borough-council/sutton,London Borough of Sutton,17/05/2021,10002270,-0.01, ASDA GROCERIES ONLINE,ASDA REFUND FOR LEAVING CARE TEAM / THORNTON ROAD,Peoples Services,Equipment And Materials Purchase,A40000,
http://opendatacommunities.org/id/london-borough-council/sutton,London Borough of Sutton,16/05/2021,10002270,8.45, AMZNMKTPLACE AMAZON.CO,SPLIT - BOX OF 250 DISPOSABLE WAXED 28ML MEDICINE TABLETS PILL MEASURE POTS (100%),Peoples Services,Equipment And Materials Purchase,A40000,
http://opendatacommunities.org/id/london-borough-council/sutton,London Borough of Sutton,14/05/2021,10002270,20.62, WWW.BRITISHAIRWAYSI360,TOWER VIEW TICKETS FOR A CARE LEAVER AT THORNTON ROAD.,Peoples Services,Equipment And Materials Purchase,A40000,
http://opendatacommunities.org/id/london-borough-council/sutton,London Borough of Sutton,19/05/2021,10002270,7.21, AMAZON.CO.UK MK1DE8YW4,"SPLIT - FLASH ALL PURPOSE MULTI SURFACE CLEANER, FLOOR CLEANER LIQUID, CHERRY BLOSSOM, 7.8 LITRES (1.3 L X 6) (29.79%)",Peoples Services,Equipment And Materials Purchase,A40000,
http://opendatacommunities.org/id/london-borough-council/sutton,London Borough of Sutton,19/05/2021,10002270,16.99, AMAZON.CO.UK MK1DE8YW4,"SPLIT - DETTOL WIPES ANTIBACTERIAL BULK SURFACE CLEANING, MULTIPACK OF 6 X 126, TOTAL 756 WIPES (70.21%)",Peoples Services,Equipment And Materials Purchase,A40000,
http://opendatacommunities.org/id/london-borough-council/sutton,London Borough of Sutton,23/05/2021,10002270,16.67, HEATHWAY QUALITY HALAL,TEAM DAY,Peoples Services,Other Supplies & Services,A44291,
http://opendatacommunities.org/id/london-borough-council/sutton,London Borough of Sutton,23/05/2021,10002270,5.00, HEATHWAY SEAFOOD,TEAM DAY,Peoples Services,Other Supplies & Services,A44291,
http://opendatacommunities.org/id/london-borough-council/sutton,London Borough of Sutton,23/05/2021,10002270,5.82, HEATHWAY CASH & CARRY,TEAM DAY,Peoples Services,Other Supplies & Services,A44291,
http://opendatacommunities.org/id/london-borough-council/sutton,London Borough of Sutton,21/05/2021,10002270,37.41, WM MORRISONS STORE,TEAM DAY,Peoples Services,Other Supplies & Services,A44291,
http://opendatacommunities.org/id/london-borough-council/sutton,London Borough of Sutton,24/05/2021,10002270,59.95, ZOOM.US 888-799-9666,ZOOM SUBSCRIPTIONS FOR RAS TEAM,Peoples Services,Subscriptions,A47010,
http://opendatacommunities.org/id/london-borough-council/sutton,London Borough of Sutton,30/04/2021,10002270,159.90, ZOOM.US 888-799-9666,ZOOM SUBSCRIPTION FOR REFERRAL AND ASSESSMENT (ZOOM MEETING),Peoples Services,Subscriptions,A47010,
http://opendatacommunities.org/id/london-borough-council/sutton,London Borough of Sutton,17/05/2021,10002270,159.90, ZOOM.US 888-799-9666,ZOOM PAYMENT FOR RAS TEAM.,Peoples Services,Subscriptions,A47010,
http://opendatacommunities.org/id/london-borough-council/sutton,London Borough of Sutton,24/05/2021,10002270,247.00, PREMIER INN,247.00 - A62000 G03100 9999 - PREMIER INN ACCOM .PNG,Peoples Services,Accommodation - Bed and Breakfast,A62000,
http://opendatacommunities.org/id/london-borough-council/sutton,London Borough of Sutton,06/04/2021,10002270,-18.33, GEN REGISTER OFFICE,REFUND FOR BIRTH CERTIFICATE FOR LOOKED AFTER TEAM,Peoples Services,Equipment And Materials Purchase,A40000,
http://opendatacommunities.org/id/london-borough-council/sutton,London Borough of Sutton,18/05/2021,10002270,6.66, VUE ENTERTAINMENT LTD,CINEMA TICKET FOR LOOKED AFTER CHILD.,Peoples Services,Equipment And Materials Purchase,A40000,
http://opendatacommunities.org/id/london-borough-council/sutton,London Borough of Sutton,29/04/2021,10002270,11.67, GEN REGISTER OFFICE,BIRTH CERT GRO FOR CHILD WITHIN THE LOOKED AFTER CHILDREN'S TEAM,Peoples Services,Equipment And Materials Purchase,A40000,
http://opendatacommunities.org/id/london-borough-council/sutton,London Borough of Sutton,06/05/2021,10002270,66.25, POST OFFICE COUNTER,PASSPORT FOR LOOKED AFTER CHILD - APPLICATION SENT FOR YOUNG PERSON PASSPORT,Peoples Services,Equipment And Materials Purchase,A40000,
http://opendatacommunities.org/id/london-borough-council/sutton,London Borough of Sutton,06/05/2021,10002270,42.91, WWW.PRESTIGEFLOWERS.CO,PRESTIGE FLOWERS FOR CARER FROM SOCIAL WORKER IN LOOKED AFTER CHILDREN'S TEAM,Peoples Services,Equipment And Materials Purchase,A40000,
http://opendatacommunities.org/id/london-borough-council/sutton,London Borough of Sutton,19/05/2021,10002270,2.52, WF  WAYFAIR3549476104,MOBICIP SUBSCRIPTION FOR LOOKED AFTER CHILDREN TEAM.,Peoples Services,Subscriptions,A47010,
http://opendatacommunities.org/id/london-borough-council/sutton,London Borough of Sutton,18/05/2021,10002270,91.70, MOBICIP ENTERPRISE,MOBICIP SUBSCRIPTION FOR LOOKED AFTER TEAM.,Peoples Services,Subscriptions,A47010,
http://opendatacommunities.org/id/london-borough-council/sutton,London Borough of Sutton,10/05/2021,10002270,30.00, GEN REGISTER OFFICE,BIRTH CERTIFICATE ORDERED FOR LOOKED AFTER CHILDREN'S TEAM,Peoples Services,Miscellaneous Expenses,A49000,
http://opendatacommunities.org/id/london-borough-council/sutton,London Borough of Sutton,21/05/2021,10002270,24.58, GRAVITY,GRAVITY TRAMPOLINING LOOKED AFTER CHILDREN'S TEAM,Peoples Services,Miscellaneous Expenses,A49000,
http://opendatacommunities.org/id/london-borough-council/sutton,London Borough of Sutton,19/05/2021,10002270,24.58, GRAVITY,GRAVITY TRAMPOLINING TICKETS FOR LOOKED AFTER CHILDREN'S TEAM,Peoples Services,Miscellaneous Expenses,A49000,
http://opendatacommunities.org/id/london-borough-council/sutton,London Borough of Sutton,19/05/2021,10002270,40.83, LOCKMEADOW ENTERTAINME,MEADOW TICKETS FOR LOOKED AFTER CHILDREN TEAM.,Peoples Services,Client Care/Assistance,A61011,
http://opendatacommunities.org/id/london-borough-council/sutton,London Borough of Sutton,24/05/2021,10002270,11.00, KENT COUNTY COUNCIL,KENT COUNTY COUNCIL - BIRTH CERTIFICATE,Peoples Services,Equipment And Materials Purchase,A40000,
http://opendatacommunities.org/id/london-borough-council/sutton,London Borough of Sutton,06/05/2021,10002270,20.92, WWW.HOVERTRAVEL.COM,HOVER CRAFT TRAVEL FOR SOCIAL WORKER TO GO ON A VISIT WITHIN COURT TEAM.,Peoples Services,Equipment And Materials Purchase,A40000,
http://opendatacommunities.org/id/london-borough-council/sutton,London Borough of Sutton,25/05/2021,10002270,30.97, MINICABIT,MINI CAB FOR THE COURT TEAM FOR PARENT TRAVELLING TO CONTACT,Peoples Services,Miscellaneous Expenses,A49000,
http://opendatacommunities.org/id/london-borough-council/sutton,London Borough of Sutton,21/05/2021,10002270,27.50, LBS REGISTRARS,BIRTH CERTIFICATE FOR COURT TEAM REQUESTED BY SOCIAL WORKER.,Peoples Services,Miscellaneous Expenses,A49000,
http://opendatacommunities.org/id/london-borough-council/sutton,London Borough of Sutton,10/05/2021,10002270,14.17, WWW.OXYGENFREEJUMPING.,OXYGEN TRAMPOLINE JUMPING PARK TICKETS REQUESTED BY SOCIAL WORKER FOR YOUNG PERSON.,Peoples Services,Miscellaneous Expenses,A49000,
http://opendatacommunities.org/id/london-borough-council/sutton,London Borough of Sutton,10/05/2021,10002270,27.50, LBS REGISTRARS,BIRTH CERTIFICATE REQUESTED BY SOCIAL WORKER.,Peoples Services,Miscellaneous Expenses,A49000,
http://opendatacommunities.org/id/london-borough-council/sutton,London Borough of Sutton,13/05/2021,10002270,16.76, MINICABIT,"MINI CAB FOR THE COURT TEAM, PARENT TO GET TO CONTACT",Peoples Services,Miscellaneous Expenses,A49000,
http://opendatacommunities.org/id/london-borough-council/sutton,London Borough of Sutton,19/05/2021,10002270,72.57, MINICABIT,"MINICABIT FOR THE COURT TEAM, PARENT TO GET TO CONTACT.",Peoples Services,Miscellaneous Expenses,A49000,
http://opendatacommunities.org/id/london-borough-council/sutton,London Borough of Sutton,20/05/2021,10002270,-27.50, LBS REGISTRARS,BIRTH CERTIFICATE FOR THE COURT TEAM REQUESTED BY SOCIAL WORKER,Peoples Services,Miscellaneous Expenses,A49000,
http://opendatacommunities.org/id/london-borough-council/sutton,London Borough of Sutton,19/05/2021,10002270,24.64, HOLLYWOOD BOWL, BOWLING TICKETS FOR THE COURT TEAM FOR FAMILY,Peoples Services,Miscellaneous Expenses,A49000,
http://opendatacommunities.org/id/london-borough-council/sutton,London Borough of Sutton,19/05/2021,10002270,33.00, LBS REGISTRARS,BIRTH CERTIFICATE FOR COURT TEAM REQUESTED BY SOCIAL WORKER.,Peoples Services,Miscellaneous Expenses,A49000,
http://opendatacommunities.org/id/london-borough-council/sutton,London Borough of Sutton,19/05/2021,10002270,32.54, MINICABIT,"MINICABIT FOR THE COURT TEAM, PARENT TO GET TO CONTACT.",Peoples Services,Miscellaneous Expenses,A49000,
http://opendatacommunities.org/id/london-borough-council/sutton,London Borough of Sutton,20/05/2021,10002270,15.00, EXPRESS CARS,MINICABIT FOR COURT TEAM PARENT TO GET TO CONTACT,Peoples Services,C.C.A Travel & Subsistance,A61010,
http://opendatacommunities.org/id/london-borough-council/sutton,London Borough of Sutton,13/05/2021,10002270,20.92, WWW.HOVERTRAVEL.COM,"HOVER CRAFT TRAVEL FOR THE COURT TEAM, SOCIAL WORKER TO VISIT CLIENT.",Peoples Services,C.C.A Travel & Subsistance,A61010,
http://opendatacommunities.org/id/london-borough-council/sutton,London Borough of Sutton,18/05/2021,10002270,37.50, MINICABIT,MINICABIT,Peoples Services,C.C.A Travel & Subsistance,A61010,
http://opendatacommunities.org/id/london-borough-council/sutton,London Borough of Sutton,18/05/2021,10002270,20.92, WWW.HOVERTRAVEL.COM,HOVER CRAFT TRAVEL FOR COURT TEAM TO TRAVEL TO VISIT FAMILY.,Peoples Services,C.C.A Travel & Subsistance,A61010,
http://opendatacommunities.org/id/london-borough-council/sutton,London Borough of Sutton,30/04/2021,10002270,20.50, WWW.HOVERTRAVEL.COM,HOVER TRAVEL FOR SOCIAL WORKER TO GO ON A VISIT WITHIN COURT TEAM.,Peoples Services,C.C.A Travel & Subsistance,A61010,
http://opendatacommunities.org/id/london-borough-council/sutton,London Borough of Sutton,18/05/2021,10002270,61.46, WWW.WIGHTLINK.CO.UK,FERRY CROSSING FOR COURT TEAM TO TRAVEL TO VISIT FAMILY.,Peoples Services,Client Care/Assistance,A61011,
http://opendatacommunities.org/id/london-borough-council/sutton,London Borough of Sutton,05/05/2021,10002270,386.50, PREMIER INN,PREMIER INN HOTEL BOOKING,Peoples Services,C.C.A Rent & Utilities,A61009,
http://opendatacommunities.org/id/london-borough-council/sutton,London Borough of Sutton,05/05/2021,10002270,106.00, PREMIER INN,PREMIER INN HOTEL BOOKING,Peoples Services,C.C.A Rent & Utilities,A61009,
http://opendatacommunities.org/id/london-borough-council/sutton,London Borough of Sutton,05/05/2021,10002270,320.00, PREMIER INN,PREMIER INN HOTEL BOOKING,Peoples Services,C.C.A Rent & Utilities,A61009,
http://opendatacommunities.org/id/london-borough-council/sutton,London Borough of Sutton,10/05/2021,10002270,18.33, SURREY CC CARD PAY,BIRTH CERTIFICATE REQUESTED BY SOCIAL WORKER IN RED EAST LOCALITY,Peoples Services,Miscellaneous Expenses,A49000,
http://opendatacommunities.org/id/london-borough-council/sutton,London Borough of Sutton,21/05/2021,10002270,189.12, ARGOS LTD,ARGOS ITEMS FOR RED EAST LOCALITY.,Peoples Services,Client Care/Assistance,A61011,
http://opendatacommunities.org/id/london-borough-council/sutton,London Borough of Sutton,14/05/2021,10002270,189.12, ARGOS LTD,ARGOS ITEMS FOR THE RED EAST LOCALITY TEAM.,Peoples Services,Client Care/Assistance,A61011,
http://opendatacommunities.org/id/london-borough-council/sutton,London Borough of Sutton,26/04/2021,10002270,17.32, FACEBK  YJURE2XG32,FACEBOOK ADVERTISEMENT FOR FOSTERING RECRUITMENT,Peoples Services,Recruitment Expenses,A15026,
http://opendatacommunities.org/id/london-borough-council/sutton,London Borough of Sutton,16/05/2021,10002270,125.00, FACEBK  WFKZN2TG32,FACEBOOK ADVERTISEMENT FOR FOSTERING RECRUITMENT,Peoples Services,Recruitment Expenses,A15026,
http://opendatacommunities.org/id/london-borough-council/sutton,London Borough of Sutton,12/05/2021,10002270,90.00, FACEBK  JDZ2K2TG32,FACEBOOK ADVERTISEMENT FOR FOSTERING RECRUITMENT,Peoples Services,Recruitment Expenses,A15026,
http://opendatacommunities.org/id/london-borough-council/sutton,London Borough of Sutton,21/05/2021,10002270,-15.78, MINICABIT,MINICABIT FOR THE ADOPTION TEAM,Peoples Services,Childrens Social Care Transport,A32009,
http://opendatacommunities.org/id/london-borough-council/sutton,London Borough of Sutton,26/04/2021,10002270,67.31, MINICABIT,MINICABIT FOR CLIENT WITHIN THE ADOPTION TEAM,Peoples Services,C.C.A Travel & Subsistance,A61010,
http://opendatacommunities.org/id/london-borough-council/sutton,London Borough of Sutton,11/05/2021,10002270,20.19, AMAZON.CO.UK MK5ZO8QD4,SPLIT - THE APPROVED MENTAL HEALTH PROFESSIONAL PRACTICE HANDBOOK (100%),Peoples Services,Books,A43050,
http://opendatacommunities.org/id/london-borough-council/sutton,London Borough of Sutton,10/05/2021,10002270,22.50, AMZNMKTPLACE,SPLIT - WORKING WITH THE MENTAL HEALTH ACT (95.74%),Peoples Services,Books,A43050,
http://opendatacommunities.org/id/london-borough-council/sutton,London Borough of Sutton,10/05/2021,10002270,1.00, AMZNMKTPLACE,BALANCING ENTRY AMOUNT (4.26%),Peoples Services,Books,A43050,
http://opendatacommunities.org/id/london-borough-council/sutton,London Borough of Sutton,10/05/2021,10002270,116.46, UK.BOOKSHOP.ORG,BOOKS ORDERED FOR ADULT TEAM,Peoples Services,Books,A43050,
http://opendatacommunities.org/id/london-borough-council/sutton,London Borough of Sutton,13/05/2021,10002270,11.99, ZOOM.US 888-799-9666,ZOOM SUBSCRIPTION FOR CHILDREN IN CARE COUNCIL,Peoples Services,LAC - Education,A44280,
http://opendatacommunities.org/id/london-borough-council/sutton,London Borough of Sutton,21/05/2021,10002270,100.42, PREMIER INN,PREMIER INN STAY FOR FAMILY WITHIN GREEN WEST LOCALITY,Peoples Services,Temporary Protection - Homeless Persons,A62028,
http://opendatacommunities.org/id/london-borough-council/sutton,London Borough of Sutton,29/04/2021,10002270,-48.57, DECATHLON UK LIMITED,REFUND DECATHLON FOR YOUNG PERSON WITHIN BLUE CENTRAL LOCALITY,Peoples Services,Equipment And Materials Purchase,A40000,
http://opendatacommunities.org/id/london-borough-council/sutton,London Borough of Sutton,29/04/2021,10002270,-39.73, DECATHLON UK LIMITED, DECATHLON REFUND FOR YOUNG PERSON WITHIN BLUE CENTRAL LOCALITY,Peoples Services,Equipment And Materials Purchase,A40000,
http://opendatacommunities.org/id/london-borough-council/sutton,London Borough of Sutton,12/05/2021,10002270,687.26, EASYHOTEL,HOTEL BOOKING FOR BLUE LOCALITY TEAM,Peoples Services,Client Care/Assistance,A61011,
http://opendatacommunities.org/id/london-borough-council/sutton,London Borough of Sutton,21/05/2021,10002270,133.33, ACCESS SUTTON,ACCESS STORAGE FOR LEARNING DISABILITIES TEAM,Peoples Services,Equipment And Materials Purchase,A40000,
http://opendatacommunities.org/id/london-borough-council/sutton,London Borough of Sutton,01/05/2021,10002270,89.03, STORAGEMART UK A-C9097,STORAGE UNIT FOR YOUNG PERSON WITHIN CARSHALTON LOCALITY,Peoples Services,Equipment And Materials Purchase,A40000,
http://opendatacommunities.org/id/london-borough-council/sutton,London Borough of Sutton,24/05/2021,10002270,250.00, WM MORRISONS STORE,GROCERIES,Peoples Services,Health & Safety Equipment,A40080,
http://opendatacommunities.org/id/london-borough-council/sutton,London Borough of Sutton,04/05/2021,10002270,83.33, WILKO RETAIL LIMITED,REFUSE BAGS FOR PPE DISPOSAL,Peoples Services,Health & Safety Equipment,A40080,
http://opendatacommunities.org/id/london-borough-council/sutton,London Borough of Sutton,04/05/2021,10002270,165.00, CORERFIDLTD,FOOD VOUCHERS,Peoples Services,Miscellaneous Expenses,A49000,
http://opendatacommunities.org/id/london-borough-council/sutton,London Borough of Sutton,25/05/2021,10002270,45.00, ALLIUM,ESMITH FUNERAL WREATH,Peoples Services,Funeral Expenses,A44220,
http://opendatacommunities.org/id/london-borough-council/sutton,London Borough of Sutton,04/05/2021,10002270,11.00, LBSUTTON MOTO,ESMITH DEATH CERTIFICATE,Peoples Services,Funeral Expenses,A44220,
http://opendatacommunities.org/id/london-borough-council/sutton,London Borough of Sutton,30/04/2021,10002270,604.17, CITIZENM SCHIPHOL,AWAYDAY FOR STRATEGIC DIRECTOR OF PEOPLE DIRECTORATE,Peoples Services,Hire of Rooms,A22010,
http://opendatacommunities.org/id/london-borough-council/sutton,London Borough of Sutton,08/05/2021,10002270,39.99, ADOBE STOCK TRIAL,ADOBE FIRST MONTH 070521 47.99,Health and Wellbeing,Publicity,A44266,
http://opendatacommunities.org/id/london-borough-council/sutton,London Borough of Sutton,30/04/2021,10002270,53.05, MAILCHIMP,MAILCHIMP 300421 63.66,Health and Wellbeing,Publicity,A44266,
http://opendatacommunities.org/id/london-borough-council/sutton,London Borough of Sutton,29/04/2021,10002270,701.34, ELLISONS MOTO,HOT STONE KITS - REPLACEMENT ITEMS FOR BEAUTY DEPARTMENT FOLLOWING FLOOD,Health and Wellbeing,Insurance Claims,A44261,
http://opendatacommunities.org/id/london-borough-council/sutton,London Borough of Sutton,27/04/2021,10002270,104.00, HOUSE OF FAMUIR LTD,INFRA RED LAMP - REPLACEMENT ITEMS FOR BEAUTY DEPARTMENT FOLLOWING FLOOD,Health and Wellbeing,Insurance Claims,A44261,
http://opendatacommunities.org/id/london-borough-council/sutton,London Borough of Sutton,19/05/2021,10002270,17.91, SAINSBURYS SACAT 2006,COOKERY INGREDIENTS,Health and Wellbeing,Equipment And Materials Purchase,A40000,
http://opendatacommunities.org/id/london-borough-council/sutton,London Borough of Sutton,19/05/2021,10002270,3.98, WALLINGTON BARGAIN BUY,COOKERY EQUIPMENT,Health and Wellbeing,Equipment And Materials Purchase,A40000,
http://opendatacommunities.org/id/london-borough-council/sutton,London Borough of Sutton,12/05/2021,10002270,14.57, LIDL GB LONDON,COOKERY INGREDIENTS,Health and Wellbeing,Equipment And Materials Purchase,A40000,
http://opendatacommunities.org/id/london-borough-council/sutton,London Borough of Sutton,05/05/2021,10002270,9.61, LIDL GB LONDON,COOKERY INGREDIENTS,Health and Wellbeing,Equipment And Materials Purchase,A40000,
http://opendatacommunities.org/id/london-borough-council/sutton,London Borough of Sutton,04/05/2021,10002270,3.00, WILKO RETAIL LIMITED,COOKERY EQUIPMENT,Health and Wellbeing,Equipment And Materials Purchase,A40000,
http://opendatacommunities.org/id/london-borough-council/sutton,London Borough of Sutton,28/04/2021,10002270,12.19, SAINSBURYS SACAT 2006,COOKERY INGREDIENTS,Health and Wellbeing,Equipment And Materials Purchase,A40000,
http://opendatacommunities.org/id/london-borough-council/sutton,London Borough of Sutton,29/04/2021,10002270,3.99, AMAZON.CO.UK MK10R6L04,BALANCING ENTRY AMOUNT (43%),Peoples Services,LAC - Education,A44280,
http://opendatacommunities.org/id/london-borough-council/sutton,London Borough of Sutton,12/05/2021,10002270,5.83, AMZNMKTPLACE,SPLIT - XP-PEN DRAWING ANTI-FOULING LYCRA GRAPHICS TWO-FINGER GLOVE S/M/L SIZE (M) ... (4.41%),Peoples Services,LAC - Education,A44280,
http://opendatacommunities.org/id/london-borough-council/sutton,London Borough of Sutton,12/05/2021,10002270,10.82, AMZNMKTPLACE,"SPLIT - ELECTRIC PENCIL SHARPENERS, BATTERY & USB POWERED, QHUI HEAVY DUTY 2 HOLES AUTOMATIC PENCIL SHARPENERS FOR KIDS, PERFECT FOR NO. 2 PENCILS AND COLORED (8.19%)",Peoples Services,LAC - Education,A44280,
http://opendatacommunities.org/id/london-borough-council/sutton,London Borough of Sutton,12/05/2021,10002270,7.49, AMZNMKTPLACE,"SPLIT - METALLIC MARKER PENS ART SUPPLIES: ANYUKE 10 PACK METALLIC PENS FOR CHRISTMAS CRAFTS, EXPLOSION BOX, BLACK CARD, DOODLE DAZZLE PENS, CRAFT SUPPLIES, A (5.67%)",Peoples Services,LAC - Education,A44280,
http://opendatacommunities.org/id/london-borough-council/sutton,London Borough of Sutton,12/05/2021,10002270,25.99, AMZNMKTPLACE,"SPLIT - 72 PROFESSIONAL WATERCOLOUR PENCILS SET IN ZIP-UP CASE FOR GREAT RESULTS, COLOURING PENCILS FOR ADULT COLORING BOOKS, KIDS ARTIST ART DRAWING (16.38%)",Peoples Services,LAC - Education,A44280,
http://opendatacommunities.org/id/london-borough-council/sutton,London Borough of Sutton,12/05/2021,10002270,20.50, AMZNMKTPLACE,SPLIT - OLEEP 80 COLOUR PERMANENT ART MARKERS TWIN MARKER PEN BROAD FINE POINT ANIMATION DESIGN FOR DRAWING COLORING WITH BLACK BAG (15.5%),Peoples Services,LAC - Education,A44280,
http://opendatacommunities.org/id/london-borough-council/sutton,London Borough of Sutton,12/05/2021,10002270,12.49, AMZNMKTPLACE,"SPLIT - COLORFUL ART CO. BRUSH PENS - 20 PIECE WATERCOLOUR PEN SET W/ PREMIUM BRUSH TIP - VIBRANT PAINT MARKERS FOR BLENDING, PAINTING, COLOURING, LETTERING, (9.45%)",Peoples Services,LAC - Education,A44280,
http://opendatacommunities.org/id/london-borough-council/sutton,London Borough of Sutton,12/05/2021,10002270,6.66, AMZNMKTPLACE,"SPLIT - NICPRO 6 PCS ART MECHANICAL PENCILS SET WITH CASE, DRAFTING PENCIL 0.3 & 0.5 & 0.7 & 0.9 MM AND 2MM LEAD HOLDER (4B 2B HB 2H) FOR ART WRITING, SKETCHI (5.04%)",Peoples Services,LAC - Education,A44280,
http://opendatacommunities.org/id/london-borough-council/sutton,London Borough of Sutton,12/05/2021,10002270,8.82, AMZNMKTPLACE,SPLIT - LARGE CAPACITY PENCIL CASE PEN CASE PENCIL BAG POUCH HOLDER STATIONERY CASE DESK ORGANIZER COSMETIC BAG WITH ZIPPER BIG STORAGE FOR BOYS GIRLS STUDENT (6.67%),Peoples Services,LAC - Education,A44280,
http://opendatacommunities.org/id/london-borough-council/sutton,London Borough of Sutton,12/05/2021,10002270,10.49, AMZNMKTPLACE,"SPLIT - CETTKOWNS 30 PIECES PAPER BLENDING STUMP AND TORTILLIONS SET WITH 2 PIECES SANDPAPER PENCIL SHARPENER FOR STUDENT SKETCH DRAWING, 6 SIZES (7.93%)",Peoples Services,LAC - Education,A44280,
http://opendatacommunities.org/id/london-borough-council/sutton,London Borough of Sutton,19/05/2021,10002270,20.00, AMAZON.CO.UK MK82C9YZ4,SPLIT - A FOR AMAZON - AMAZON.CO.UK EGIFT VOUCHER (4%),Peoples Services,LAC - Education,A44280,
http://opendatacommunities.org/id/london-borough-council/sutton,London Borough of Sutton,19/05/2021,10002270,20.00, AMAZON.CO.UK MK82C9YZ4,SPLIT - AMAZON LOGO SQUID - AMAZON.CO.UK EGIFT VOUCHER (4%),Peoples Services,LAC - Education,A44280,
http://opendatacommunities.org/id/london-borough-council/sutton,London Borough of Sutton,19/05/2021,10002270,20.00, AMAZON.CO.UK MK82C9YZ4,SPLIT - AMAZON LOGO SQUID - AMAZON.CO.UK EGIFT VOUCHER (4%),Peoples Services,LAC - Education,A44280,
http://opendatacommunities.org/id/london-borough-council/sutton,London Borough of Sutton,19/05/2021,10002270,20.00, AMAZON.CO.UK MK82C9YZ4,SPLIT - AMAZON LOGO SQUID - AMAZON.CO.UK EGIFT VOUCHER (4%),Peoples Services,LAC - Education,A44280,
http://opendatacommunities.org/id/london-borough-council/sutton,London Borough of Sutton,19/05/2021,10002270,20.00, AMAZON.CO.UK MK82C9YZ4,SPLIT - AMAZON LOGO SQUID - AMAZON.CO.UK EGIFT VOUCHER (4%),Peoples Services,LAC - Education,A44280,
http://opendatacommunities.org/id/london-borough-council/sutton,London Borough of Sutton,19/05/2021,10002270,20.00, AMAZON.CO.UK MK82C9YZ4,SPLIT - AMAZON LOGO SQUID - AMAZON.CO.UK EGIFT VOUCHER (4%),Peoples Services,LAC - Education,A44280,
http://opendatacommunities.org/id/london-borough-council/sutton,London Borough of Sutton,19/05/2021,10002270,20.00, AMAZON.CO.UK MK82C9YZ4,SPLIT - A FOR AMAZON - AMAZON.CO.UK EGIFT VOUCHER (4%),Peoples Services,LAC - Education,A44280,
http://opendatacommunities.org/id/london-borough-council/sutton,London Borough of Sutton,19/05/2021,10002270,20.00, AMAZON.CO.UK MK82C9YZ4,SPLIT - AMAZON LOGO SQUID - AMAZON.CO.UK EGIFT VOUCHER (4%),Peoples Services,LAC - Education,A44280,
http://opendatacommunities.org/id/london-borough-council/sutton,London Borough of Sutton,19/05/2021,10002270,20.00, AMAZON.CO.UK MK82C9YZ4,SPLIT - AMAZON LOGO SQUID - AMAZON.CO.UK EGIFT VOUCHER (4%),Peoples Services,LAC - Education,A44280,
http://opendatacommunities.org/id/london-borough-council/sutton,London Borough of Sutton,12/05/2021,10002270,8.32, AMZNMKTPLACE,"SPLIT - FINELINER PEN FINELINERS DRAWING PENS - FINE LINERS MICRO PEN FOR ARTIST ILLUSTRATION, SKETCHING, TECHNICAL, MANGA, SCRAPBOOKING, TECHNICAL DRAWING PE (6.29%)",Peoples Services,LAC - Education,A44280,
http://opendatacommunities.org/id/london-borough-council/sutton,London Borough of Sutton,12/05/2021,10002270,7.09, AMZNMKTPLACE,"SPLIT - 3 PACK PROFESSIONAL WHITE CHARCOAL PENCILS SET SKETCH HIGHLIGHT COLORED PENCILS DRAWING SET ART PAINTING SUPPLIES PENCILS FOR DRAWING, SKETCHING, SHAD (5.36%)",Peoples Services,LAC - Education,A44280,
http://opendatacommunities.org/id/london-borough-council/sutton,London Borough of Sutton,12/05/2021,10002270,16.50, AMAZON.CO.UK MK7754DN4,SPLIT - XEROX PERFORMER MULTIFUNCTIONAL PAPER 80GSM 500 SHEETS PER REAM A3 WHITE - REF 003R90569 [1 REAM] (90.53%),Peoples Services,LAC - Education,A44280,
http://opendatacommunities.org/id/london-borough-council/sutton,London Borough of Sutton,12/05/2021,10002270,1.71, AMAZON.CO.UK MK7754DN4,BALANCING ENTRY AMOUNT (9.47%),Peoples Services,LAC - Education,A44280,
http://opendatacommunities.org/id/london-borough-council/sutton,London Borough of Sutton,12/05/2021,10002270,8.25, AMAZON.CO.UK MK3763DR4,SPLIT - XEROX PERFORMER MULTIFUNCTIONAL PAPER 80GSM 500 SHEETS PER REAM A3 WHITE - REF 003R90569 [1 REAM] (90.49%),Peoples Services,LAC - Education,A44280,
http://opendatacommunities.org/id/london-borough-council/sutton,London Borough of Sutton,12/05/2021,10002270,0.86, AMAZON.CO.UK MK3763DR4,BALANCING ENTRY AMOUNT (9.51%),Peoples Services,LAC - Education,A44280,
http://opendatacommunities.org/id/london-borough-council/sutton,London Borough of Sutton,11/05/2021,10002270,1.67, AMAZON.CO.UK MK5I116X4,"SPLIT - SILVINE A6 MULTI-COLOURED RECORD CARDS - LINED WITH HEADLINE, 100 CARDS PER PACK (SIZE 6X4""), 564AC (65.79%)",Peoples Services,LAC - Education,A44280,
http://opendatacommunities.org/id/london-borough-council/sutton,London Borough of Sutton,11/05/2021,10002270,0.86, AMAZON.CO.UK MK5I116X4,BALANCING ENTRY AMOUNT (34.21%),Peoples Services,LAC - Education,A44280,
http://opendatacommunities.org/id/london-borough-council/sutton,London Borough of Sutton,12/05/2021,10002270,10.00, AMAZON.CO.UK MK9G79DO4,SPLIT - AMAZON LOGO SQUID - AMAZON.CO.UK EGIFT VOUCHER (3.03%),Peoples Services,LAC - Education,A44280,
http://opendatacommunities.org/id/london-borough-council/sutton,London Borough of Sutton,12/05/2021,10002270,10.00, AMAZON.CO.UK MK9G79DO4,SPLIT - AMAZON LOGO SQUID - AMAZON.CO.UK EGIFT VOUCHER (3.03%),Peoples Services,LAC - Education,A44280,
http://opendatacommunities.org/id/london-borough-council/sutton,London Borough of Sutton,12/05/2021,10002270,10.00, AMAZON.CO.UK MK9G79DO4,SPLIT - AMAZON LOGO SQUID - AMAZON.CO.UK EGIFT VOUCHER (3.03%),Peoples Services,LAC - Education,A44280,
http://opendatacommunities.org/id/london-borough-council/sutton,London Borough of Sutton,13/05/2021,10002270,-0.87, AMZ AMAZON.CO.UK,BALANCING ENTRY AMOUNT (83.2%),Peoples Services,LAC - Education,A44280,
http://opendatacommunities.org/id/london-borough-council/sutton,London Borough of Sutton,13/05/2021,10002270,-0.35, AMZ AMAZON BUSINESS UK,SPLIT - XEROX PERFORMER MULTIFUNCTIONAL PAPER 80GSM 500 SHEETS PER REAM A3 WHITE - REF 003R90569 [1 REAM] (16.87%),Peoples Services,LAC - Education,A44280,
http://opendatacommunities.org/id/london-borough-council/sutton,London Borough of Sutton,13/05/2021,10002270,-1.72, AMZ AMAZON BUSINESS UK,BALANCING ENTRY AMOUNT (83.13%),Peoples Services,LAC - Education,A44280,
http://opendatacommunities.org/id/london-borough-council/sutton,London Borough of Sutton,13/05/2021,10002270,-0.17, AMZ AMAZON BUSINESS UK,SPLIT - XEROX PERFORMER MULTIFUNCTIONAL PAPER 80GSM 500 SHEETS PER REAM A3 WHITE - REF 003R90569 [1 REAM] (16.8%),Peoples Services,LAC - Education,A44280,
http://opendatacommunities.org/id/london-borough-council/sutton,London Borough of Sutton,13/05/2021,10002270,-0.87, AMZ AMAZON BUSINESS UK,BALANCING ENTRY AMOUNT (83.2%),Peoples Services,LAC - Education,A44280,
http://opendatacommunities.org/id/london-borough-council/sutton,London Borough of Sutton,12/05/2021,10002270,21.59, AMZNMKTPLACE,"SPLIT - HELLERY WOODEN DESKTOP EASEL, DRAWING BOARD TABLE EASEL CRAFT WORKSTATION ADJUSTABLE FOR SKETCHING ART PAINTING - 30X27X22CM (100%)",Peoples Services,LAC - Education,A44280,
http://opendatacommunities.org/id/london-borough-council/sutton,London Borough of Sutton,12/05/2021,10002270,10.00, AMAZON.CO.UK MK9G79DO4,SPLIT - AMAZON LOGO SQUID - AMAZON.CO.UK EGIFT VOUCHER (3.03%),Peoples Services,LAC - Education,A44280,
http://opendatacommunities.org/id/london-borough-council/sutton,London Borough of Sutton,12/05/2021,10002270,10.00, AMAZON.CO.UK MK9G79DO4,SPLIT - AMAZON LOGO SQUID - AMAZON.CO.UK EGIFT VOUCHER (3.03%),Peoples Services,LAC - Education,A44280,
http://opendatacommunities.org/id/london-borough-council/sutton,London Borough of Sutton,12/05/2021,10002270,10.00, AMAZON.CO.UK MK9G79DO4,SPLIT - AMAZON LOGO SQUID - AMAZON.CO.UK EGIFT VOUCHER (3.03%),Peoples Services,LAC - Education,A44280,
http://opendatacommunities.org/id/london-borough-council/sutton,London Borough of Sutton,12/05/2021,10002270,10.00, AMAZON.CO.UK MK9G79DO4,SPLIT - AMAZON LOGO SQUID - AMAZON.CO.UK EGIFT VOUCHER (3.03%),Peoples Services,LAC - Education,A44280,
http://opendatacommunities.org/id/london-borough-council/sutton,London Borough of Sutton,12/05/2021,10002270,10.00, AMAZON.CO.UK MK9G79DO4,SPLIT - AMAZON LOGO SQUID - AMAZON.CO.UK EGIFT VOUCHER (3.03%),Peoples Services,LAC - Education,A44280,
http://opendatacommunities.org/id/london-borough-council/sutton,London Borough of Sutton,19/05/2021,10002270,20.00, AMAZON.CO.UK MK4E42YD4,SPLIT - AMAZON LOGO SQUID - AMAZON.CO.UK EGIFT VOUCHER (6.25%),Peoples Services,LAC - Education,A44280,
http://opendatacommunities.org/id/london-borough-council/sutton,London Borough of Sutton,19/05/2021,10002270,20.00, AMAZON.CO.UK MK4E42YD4,SPLIT - AMAZON LOGO SQUID - AMAZON.CO.UK EGIFT VOUCHER (6.25%),Peoples Services,LAC - Education,A44280,
http://opendatacommunities.org/id/london-borough-council/sutton,London Borough of Sutton,19/05/2021,10002270,20.00, AMAZON.CO.UK MK4E42YD4,SPLIT - A FOR AMAZON - AMAZON.CO.UK EGIFT VOUCHER (6.25%),Peoples Services,LAC - Education,A44280,
http://opendatacommunities.org/id/london-borough-council/sutton,London Borough of Sutton,19/05/2021,10002270,20.00, AMAZON.CO.UK MK4E42YD4,SPLIT - AMAZON LOGO SQUID - AMAZON.CO.UK EGIFT VOUCHER (6.25%),Peoples Services,LAC - Education,A44280,
http://opendatacommunities.org/id/london-borough-council/sutton,London Borough of Sutton,19/05/2021,10002270,20.00, AMAZON.CO.UK MK4E42YD4,SPLIT - A FOR AMAZON - AMAZON.CO.UK EGIFT VOUCHER (6.25%),Peoples Services,LAC - Education,A44280,
http://opendatacommunities.org/id/london-borough-council/sutton,London Borough of Sutton,19/05/2021,10002270,20.00, AMAZON.CO.UK MK4E42YD4,SPLIT - AMAZON LOGO SQUID - AMAZON.CO.UK EGIFT VOUCHER (6.25%),Peoples Services,LAC - Education,A44280,
http://opendatacommunities.org/id/london-borough-council/sutton,London Borough of Sutton,19/05/2021,10002270,20.00, AMAZON.CO.UK MK4E42YD4,SPLIT - AMAZON LOGO SQUID - AMAZON.CO.UK EGIFT VOUCHER (6.25%),Peoples Services,LAC - Education,A44280,
http://opendatacommunities.org/id/london-borough-council/sutton,London Borough of Sutton,19/05/2021,10002270,20.00, AMAZON.CO.UK MK4E42YD4,SPLIT - A FOR AMAZON - AMAZON.CO.UK EGIFT VOUCHER (6.25%),Peoples Services,LAC - Education,A44280,
http://opendatacommunities.org/id/london-borough-council/sutton,London Borough of Sutton,19/05/2021,10002270,20.00, AMAZON.CO.UK MK4E42YD4,SPLIT - A FOR AMAZON - AMAZON.CO.UK EGIFT VOUCHER (6.25%),Peoples Services,LAC - Education,A44280,
http://opendatacommunities.org/id/london-borough-council/sutton,London Borough of Sutton,19/05/2021,10002270,20.00, AMAZON.CO.UK MK4E42YD4,SPLIT - A FOR AMAZON - AMAZON.CO.UK EGIFT VOUCHER (6.25%),Peoples Services,LAC - Education,A44280,
http://opendatacommunities.org/id/london-borough-council/sutton,London Borough of Sutton,19/05/2021,10002270,20.00, AMAZON.CO.UK MK4E42YD4,SPLIT - A FOR AMAZON - AMAZON.CO.UK EGIFT VOUCHER (6.25%),Peoples Services,LAC - Education,A44280,
http://opendatacommunities.org/id/london-borough-council/sutton,London Borough of Sutton,19/05/2021,10002270,20.00, AMAZON.CO.UK MK4E42YD4,SPLIT - A FOR AMAZON - AMAZON.CO.UK EGIFT VOUCHER (6.25%),Peoples Services,LAC - Education,A44280,
http://opendatacommunities.org/id/london-borough-council/sutton,London Borough of Sutton,19/05/2021,10002270,20.00, AMAZON.CO.UK MK4E42YD4,SPLIT - AMAZON LOGO SQUID - AMAZON.CO.UK EGIFT VOUCHER (6.25%),Peoples Services,LAC - Education,A44280,
http://opendatacommunities.org/id/london-borough-council/sutton,London Borough of Sutton,19/05/2021,10002270,20.00, AMAZON.CO.UK MK4E42YD4,SPLIT - AMAZON LOGO SQUID - AMAZON.CO.UK EGIFT VOUCHER (6.25%),Peoples Services,LAC - Education,A44280,
http://opendatacommunities.org/id/london-borough-council/sutton,London Borough of Sutton,19/05/2021,10002270,20.00, AMAZON.CO.UK MK4E42YD4,SPLIT - AMAZON LOGO SQUID - AMAZON.CO.UK EGIFT VOUCHER (6.25%),Peoples Services,LAC - Education,A44280,
http://opendatacommunities.org/id/london-borough-council/sutton,London Borough of Sutton,19/05/2021,10002270,20.00, AMAZON.CO.UK MK4E42YD4,SPLIT - AMAZON LOGO SQUID - AMAZON.CO.UK EGIFT VOUCHER (6.25%),Peoples Services,LAC - Education,A44280,
http://opendatacommunities.org/id/london-borough-council/sutton,London Borough of Sutton,19/05/2021,10002270,20.00, AMAZON.CO.UK MK82C9YZ4,SPLIT - AMAZON LOGO SQUID - AMAZON.CO.UK EGIFT VOUCHER (4%),Peoples Services,LAC - Education,A44280,
http://opendatacommunities.org/id/london-borough-council/sutton,London Borough of Sutton,19/05/2021,10002270,20.00, AMAZON.CO.UK MK82C9YZ4,SPLIT - AMAZON LOGO SQUID - AMAZON.CO.UK EGIFT VOUCHER (4%),Peoples Services,LAC - Education,A44280,
http://opendatacommunities.org/id/london-borough-council/sutton,London Borough of Sutton,19/05/2021,10002270,20.00, AMAZON.CO.UK MK82C9YZ4,SPLIT - AMAZON LOGO SQUID - AMAZON.CO.UK EGIFT VOUCHER (4%),Peoples Services,LAC - Education,A44280,
http://opendatacommunities.org/id/london-borough-council/sutton,London Borough of Sutton,19/05/2021,10002270,20.00, AMAZON.CO.UK MK82C9YZ4,SPLIT - AMAZON LOGO SQUID - AMAZON.CO.UK EGIFT VOUCHER (4%),Peoples Services,LAC - Education,A44280,
http://opendatacommunities.org/id/london-borough-council/sutton,London Borough of Sutton,19/05/2021,10002270,20.00, AMAZON.CO.UK MK82C9YZ4,SPLIT - AMAZON LOGO SQUID - AMAZON.CO.UK EGIFT VOUCHER (4%),Peoples Services,LAC - Education,A44280,
http://opendatacommunities.org/id/london-borough-council/sutton,London Borough of Sutton,19/05/2021,10002270,20.00, AMAZON.CO.UK MK82C9YZ4,SPLIT - AMAZON LOGO SQUID - AMAZON.CO.UK EGIFT VOUCHER (4%),Peoples Services,LAC - Education,A44280,
http://opendatacommunities.org/id/london-borough-council/sutton,London Borough of Sutton,19/05/2021,10002270,20.00, AMAZON.CO.UK MK82C9YZ4,SPLIT - A FOR AMAZON - AMAZON.CO.UK EGIFT VOUCHER (4%),Peoples Services,LAC - Education,A44280,
http://opendatacommunities.org/id/london-borough-council/sutton,London Borough of Sutton,19/05/2021,10002270,20.00, AMAZON.CO.UK MK82C9YZ4,SPLIT - AMAZON LOGO SQUID - AMAZON.CO.UK EGIFT VOUCHER (4%),Peoples Services,LAC - Education,A44280,
http://opendatacommunities.org/id/london-borough-council/sutton,London Borough of Sutton,19/05/2021,10002270,20.00, AMAZON.CO.UK MK82C9YZ4,SPLIT - AMAZON LOGO SQUID - AMAZON.CO.UK EGIFT VOUCHER (4%),Peoples Services,LAC - Education,A44280,
http://opendatacommunities.org/id/london-borough-council/sutton,London Borough of Sutton,19/05/2021,10002270,20.00, AMAZON.CO.UK MK82C9YZ4,SPLIT - A FOR AMAZON - AMAZON.CO.UK EGIFT VOUCHER (4%),Peoples Services,LAC - Education,A44280,
http://opendatacommunities.org/id/london-borough-council/sutton,London Borough of Sutton,19/05/2021,10002270,20.00, AMAZON.CO.UK MK82C9YZ4,SPLIT - AMAZON LOGO SQUID - AMAZON.CO.UK EGIFT VOUCHER (4%),Peoples Services,LAC - Education,A44280,
http://opendatacommunities.org/id/london-borough-council/sutton,London Borough of Sutton,19/05/2021,10002270,20.00, AMAZON.CO.UK MK82C9YZ4,SPLIT - AMAZON LOGO SQUID - AMAZON.CO.UK EGIFT VOUCHER (4%),Peoples Services,LAC - Education,A44280,
http://opendatacommunities.org/id/london-borough-council/sutton,London Borough of Sutton,19/05/2021,10002270,20.00, AMAZON.CO.UK MK82C9YZ4,SPLIT - A FOR AMAZON - AMAZON.CO.UK EGIFT VOUCHER (4%),Peoples Services,LAC - Education,A44280,
http://opendatacommunities.org/id/london-borough-council/sutton,London Borough of Sutton,19/05/2021,10002270,20.00, AMAZON.CO.UK MK82C9YZ4,SPLIT - AMAZON LOGO SQUID - AMAZON.CO.UK EGIFT VOUCHER (4%),Peoples Services,LAC - Education,A44280,
http://opendatacommunities.org/id/london-borough-council/sutton,London Borough of Sutton,19/05/2021,10002270,20.00, AMAZON.CO.UK MK82C9YZ4,SPLIT - AMAZON LOGO SQUID - AMAZON.CO.UK EGIFT VOUCHER (4%),Peoples Services,LAC - Education,A44280,
http://opendatacommunities.org/id/london-borough-council/sutton,London Borough of Sutton,19/05/2021,10002270,20.00, AMAZON.CO.UK MK82C9YZ4,SPLIT - AMAZON LOGO SQUID - AMAZON.CO.UK EGIFT VOUCHER (4%),Peoples Services,LAC - Education,A44280,
http://opendatacommunities.org/id/london-borough-council/sutton,London Borough of Sutton,14/05/2021,10002270,1.41, AMZNMKTPLACE,"SPLIT - SILVINE 5X3"" MULTI-COLOURED RECORD CARDS - LINED WITH HEADLINE, 100 CARDS PER PACK. REF 553AC (127 X 76MM) (100%)",Peoples Services,LAC - Education,A44280,
http://opendatacommunities.org/id/london-borough-council/sutton,London Borough of Sutton,13/05/2021,10002270,14.78, AMAZON.CO.UK MK7SN0244,SPLIT - Q-CONNECT COPIER PAPER A3 80GSM WHITE REAM (81.04%),Peoples Services,LAC - Education,A44280,
http://opendatacommunities.org/id/london-borough-council/sutton,London Borough of Sutton,13/05/2021,10002270,3.45, AMAZON.CO.UK MK7SN0244,BALANCING ENTRY AMOUNT (18.96%),Peoples Services,LAC - Education,A44280,
http://opendatacommunities.org/id/london-borough-council/sutton,London Borough of Sutton,13/05/2021,10002270,-0.17, AMZ AMAZON.CO.UK,"SPLIT - SILVINE A6 MULTI-COLOURED RECORD CARDS - LINED WITH HEADLINE, 100 CARDS PER PACK (SIZE 6X4""), 564AC (16.8%)",Peoples Services,LAC - Education,A44280,
http://opendatacommunities.org/id/london-borough-council/sutton,London Borough of Sutton,12/05/2021,10002270,10.00, AMAZON.CO.UK MK9G79DO4,SPLIT - AMAZON LOGO SQUID - AMAZON.CO.UK EGIFT VOUCHER (3.03%),Peoples Services,LAC - Education,A44280,
http://opendatacommunities.org/id/london-borough-council/sutton,London Borough of Sutton,12/05/2021,10002270,10.00, AMAZON.CO.UK MK9G79DO4,SPLIT - AMAZON LOGO SQUID - AMAZON.CO.UK EGIFT VOUCHER (3.03%),Peoples Services,LAC - Education,A44280,
http://opendatacommunities.org/id/london-borough-council/sutton,London Borough of Sutton,12/05/2021,10002270,10.00, AMAZON.CO.UK MK9G79DO4,SPLIT - AMAZON LOGO SQUID - AMAZON.CO.UK EGIFT VOUCHER (3.03%),Peoples Services,LAC - Education,A44280,
http://opendatacommunities.org/id/london-borough-council/sutton,London Borough of Sutton,12/05/2021,10002270,10.00, AMAZON.CO.UK MK9G79DO4,SPLIT - AMAZON LOGO SQUID - AMAZON.CO.UK EGIFT VOUCHER (3.03%),Peoples Services,LAC - Education,A44280,
http://opendatacommunities.org/id/london-borough-council/sutton,London Borough of Sutton,12/05/2021,10002270,10.00, AMAZON.CO.UK MK9G79DO4,SPLIT - AMAZON LOGO SQUID - AMAZON.CO.UK EGIFT VOUCHER (3.03%),Peoples Services,LAC - Education,A44280,
http://opendatacommunities.org/id/london-borough-council/sutton,London Borough of Sutton,12/05/2021,10002270,10.00, AMAZON.CO.UK MK9G79DO4,SPLIT - AMAZON LOGO SQUID - AMAZON.CO.UK EGIFT VOUCHER (3.03%),Peoples Services,LAC - Education,A44280,
http://opendatacommunities.org/id/london-borough-council/sutton,London Borough of Sutton,12/05/2021,10002270,10.00, AMAZON.CO.UK MK9G79DO4,SPLIT - AMAZON LOGO SQUID - AMAZON.CO.UK EGIFT VOUCHER (3.03%),Peoples Services,LAC - Education,A44280,
http://opendatacommunities.org/id/london-borough-council/sutton,London Borough of Sutton,12/05/2021,10002270,10.00, AMAZON.CO.UK MK9G79DO4,SPLIT - AMAZON LOGO SQUID - AMAZON.CO.UK EGIFT VOUCHER (3.03%),Peoples Services,LAC - Education,A44280,
http://opendatacommunities.org/id/london-borough-council/sutton,London Borough of Sutton,12/05/2021,10002270,10.00, AMAZON.CO.UK MK9G79DO4,SPLIT - AMAZON LOGO SQUID - AMAZON.CO.UK EGIFT VOUCHER (3.03%),Peoples Services,LAC - Education,A44280,
http://opendatacommunities.org/id/london-borough-council/sutton,London Borough of Sutton,12/05/2021,10002270,10.00, AMAZON.CO.UK MK9G79DO4,SPLIT - AMAZON LOGO SQUID - AMAZON.CO.UK EGIFT VOUCHER (3.03%),Peoples Services,LAC - Education,A44280,
http://opendatacommunities.org/id/london-borough-council/sutton,London Borough of Sutton,12/05/2021,10002270,10.00, AMAZON.CO.UK MK9G79DO4,SPLIT - AMAZON LOGO SQUID - AMAZON.CO.UK EGIFT VOUCHER (3.03%),Peoples Services,LAC - Education,A44280,
http://opendatacommunities.org/id/london-borough-council/sutton,London Borough of Sutton,12/05/2021,10002270,10.00, AMAZON.CO.UK MK9G79DO4,SPLIT - AMAZON LOGO SQUID - AMAZON.CO.UK EGIFT VOUCHER (3.03%),Peoples Services,LAC - Education,A44280,
http://opendatacommunities.org/id/london-borough-council/sutton,London Borough of Sutton,12/05/2021,10002270,10.00, AMAZON.CO.UK MK9G79DO4,SPLIT - AMAZON LOGO SQUID - AMAZON.CO.UK EGIFT VOUCHER (3.03%),Peoples Services,LAC - Education,A44280,
http://opendatacommunities.org/id/london-borough-council/sutton,London Borough of Sutton,12/05/2021,10002270,10.00, AMAZON.CO.UK MK9G79DO4,SPLIT - AMAZON LOGO SQUID - AMAZON.CO.UK EGIFT VOUCHER (3.03%),Peoples Services,LAC - Education,A44280,
http://opendatacommunities.org/id/london-borough-council/sutton,London Borough of Sutton,12/05/2021,10002270,10.00, AMAZON.CO.UK MK9G79DO4,SPLIT - AMAZON LOGO SQUID - AMAZON.CO.UK EGIFT VOUCHER (3.03%),Peoples Services,LAC - Education,A44280,
http://opendatacommunities.org/id/london-borough-council/sutton,London Borough of Sutton,12/05/2021,10002270,10.00, AMAZON.CO.UK MK9G79DO4,SPLIT - AMAZON LOGO SQUID - AMAZON.CO.UK EGIFT VOUCHER (3.03%),Peoples Services,LAC - Education,A44280,
http://opendatacommunities.org/id/london-borough-council/sutton,London Borough of Sutton,12/05/2021,10002270,10.00, AMAZON.CO.UK MK9G79DO4,SPLIT - AMAZON LOGO SQUID - AMAZON.CO.UK EGIFT VOUCHER (3.03%),Peoples Services,LAC - Education,A44280,
http://opendatacommunities.org/id/london-borough-council/sutton,London Borough of Sutton,12/05/2021,10002270,10.00, AMAZON.CO.UK MK9G79DO4,SPLIT - AMAZON LOGO SQUID - AMAZON.CO.UK EGIFT VOUCHER (3.03%),Peoples Services,LAC - Education,A44280,
http://opendatacommunities.org/id/london-borough-council/sutton,London Borough of Sutton,12/05/2021,10002270,10.00, AMAZON.CO.UK MK9G79DO4,SPLIT - AMAZON LOGO SQUID - AMAZON.CO.UK EGIFT VOUCHER (3.03%),Peoples Services,LAC - Education,A44280,
http://opendatacommunities.org/id/london-borough-council/sutton,London Borough of Sutton,12/05/2021,10002270,10.00, AMAZON.CO.UK MK9G79DO4,SPLIT - AMAZON LOGO SQUID - AMAZON.CO.UK EGIFT VOUCHER (3.03%),Peoples Services,LAC - Education,A44280,
http://opendatacommunities.org/id/london-borough-council/sutton,London Borough of Sutton,12/05/2021,10002270,10.00, AMAZON.CO.UK MK9G79DO4,SPLIT - AMAZON LOGO SQUID - AMAZON.CO.UK EGIFT VOUCHER (3.03%),Peoples Services,LAC - Education,A44280,
http://opendatacommunities.org/id/london-borough-council/sutton,London Borough of Sutton,12/05/2021,10002270,10.00, AMAZON.CO.UK MK9G79DO4,SPLIT - AMAZON LOGO SQUID - AMAZON.CO.UK EGIFT VOUCHER (3.03%),Peoples Services,LAC - Education,A44280,
http://opendatacommunities.org/id/london-borough-council/sutton,London Borough of Sutton,12/05/2021,10002270,10.00, AMAZON.CO.UK MK9G79DO4,SPLIT - AMAZON LOGO SQUID - AMAZON.CO.UK EGIFT VOUCHER (3.03%),Peoples Services,LAC - Education,A44280,
http://opendatacommunities.org/id/london-borough-council/sutton,London Borough of Sutton,12/05/2021,10002270,10.00, AMAZON.CO.UK MK9G79DO4,SPLIT - AMAZON LOGO SQUID - AMAZON.CO.UK EGIFT VOUCHER (3.03%),Peoples Services,LAC - Education,A44280,
http://opendatacommunities.org/id/london-borough-council/sutton,London Borough of Sutton,12/05/2021,10002270,10.00, AMAZON.CO.UK MK9G79DO4,SPLIT - AMAZON LOGO SQUID - AMAZON.CO.UK EGIFT VOUCHER (3.04%),Peoples Services,LAC - Education,A44280,
http://opendatacommunities.org/id/london-borough-council/sutton,London Borough of Sutton,12/05/2021,10002270,8.34, AMZNMKTPLACE,"SPLIT - ELBA A4 LEVER ARCH FILE, RED/BLACK/BLUE, PACK OF 3 (52.68%)",Peoples Services,LAC - Education,A44280,
http://opendatacommunities.org/id/london-borough-council/sutton,London Borough of Sutton,12/05/2021,10002270,7.49, AMZNMKTPLACE,"SPLIT - ARCHITECTURAL SCALE RULER, ALUMINUM TRIANGULAR SCALE RULER METRIC 1:20, 1:25, 1:50, 1:75, 1:100, 1:125 STANDARD 12 INCH FOR ARCHITECTS, STUDENTS, DRAF (47.32%)",Peoples Services,LAC - Education,A44280,
http://opendatacommunities.org/id/london-borough-council/sutton,London Borough of Sutton,12/05/2021,10002270,12.04, AMZNMKTPLACE,SPLIT - A4 SKETCHBOOK - 100 PAGES (50 SHEETS) WIRE-O PORTRAIT DRAWING PAD FOR HEAVY MIXED MEDIA WITH PERFORATED 180GSM ACID-FREE CARTRIDGE PAPER AND CLOTH COV (9.11%),Peoples Services,LAC - Education,A44280,
http://opendatacommunities.org/id/london-borough-council/sutton,London Borough of Sutton,11/05/2021,10002270,3.74, AMZNMKTPLACE,"SPLIT - 24 FINELINER COLOURING PENS SET FINE POINT PENS 0.4MM ASSORTED COLOURS, FINELINERS COLOURED PENS (100%)",Peoples Services,LAC - Education,A44280,
http://opendatacommunities.org/id/london-borough-council/sutton,London Borough of Sutton,30/04/2021,10002270,32.99, AMZNMKTPLACE AMAZON.CO,"SPLIT - ROCK WAR SERIES ROBERT MUCHAMORE COLLECTION 4 BOOKS SET (ROCK WAR, BOOT CAMP, GONE WILD, CRASH LANDING) (92.18%)",Peoples Services,LAC - Education,A44280,
http://opendatacommunities.org/id/london-borough-council/sutton,London Borough of Sutton,30/04/2021,10002270,2.80, AMZNMKTPLACE AMAZON.CO,BALANCING ENTRY AMOUNT (7.82%),Peoples Services,LAC - Education,A44280,
http://opendatacommunities.org/id/london-borough-council/sutton,London Borough of Sutton,29/04/2021,10002270,5.29, AMAZON.CO.UK MK10R6L04,SPLIT - TWELFTH NIGHT (57%),Peoples Services,LAC - Education,A44280,
